Workbook

Sheet SETUP
G1: URL
G2: tccn.pro.vn

Sheet HOME
B4: HƯỚNG DẪN SỬ DỤNG PHẦN MỀM
B8: Khi mở phần mềm, nếu gặp thông báo sau => Bạn nhấn Enable content.
B15: 1. Lập Ngân sách trong năm | L15: Click here
B16: Lập ngân sách cho
B17: + Thu nhập
B18: + Chi tiêu: Chi thường xuyên, chi cố định, chi bất thường
B19: + Tiết kiệm - Đầu tư
B20: + Trả nợ: Trả cả nợ gốc + lãi (nếu có) mỗi tháng
B22: 2. Theo dõi Chi tiêu thực tế | L22: Click here
B23: + Cập nhật số liệu chi tiêu thực tế mỗi ngày / các tháng tương ứng
B24: + Cảnh báo khi chi tiêu vượt ngân sách cho phép
B26: 3. Lên danh sách, theo dõi các khoản vay | L26: Click here
B27: Khi phát sinh các món vay, khoản nợ mới:
B28: + Cập nhật vào "Bảng kê 02" + Tên món vay
B29: + Cập nhật trả nợ gốc cho các món vay/Phát sinh tổng số tiền vay mới cho từng món - Bảng kê 01
B31: 4. Báo cáo thực tế trong năm
B32: + Các dữ liệu về thu nhập, chi tiêu của năm sẽ chạy tự động khi cập nhật dữ liệu thực tế
B33: + Biểu đồ tháng: Chọn tháng -> Dữ liệu chạy tự động

Sheet Ngan sach
O4: Đơn vị tính: | P4: Nghìn đồng | R4: NGÂN SÁCH CHI TIÊU GIA ĐÌNH
C5: Thu nhập | D5: T1 | E5: T2 | F5: T3 | G5: T4 | H5: T5 | I5: T6 | J5: T7 | K5: T8 | L5: T9 | M5: T10 | N5: T11 | O5: T12 | P5: Tổng
C6: Lương & Thưởng | D6: 15000 | E6: 15000 | F6: 15000 | G6: 30000 | H6: 15000 | I6: 15000 | J6: 19000 | K6: 15000 | L6: 15000 | M6: 15000 | N6: 15000 | O6: 25000 | P6: =SUM(D6:O6) -> 209000 | R6: Ứng dụng này được phát triển và quản lý bởi WPRO.VN Khi bạn luyện tập thành thói quen trong việc kiểm soát chi tiêu bạn sẽ thấy cuộc đời bạn chuyển biến tích cực ra sao. Email cho Trường tại hòm mail: webkynang.vn@gmail.com khi cần trợ giúp nhé.
C7: Ngoài giờ | D7: 2000 | E7: 2000 | F7: 2000 | G7: 2000 | H7: 2000 | I7: 2000 | J7: 2000 | K7: 2000 | L7: 2000 | M7: 2000 | N7: 2000 | O7: 2000 | P7: =SUM(D7:O7) -> 24000
C8: Lãi | D8: 500 | E8: 500 | F8: 500 | G8: 500 | H8: 500 | I8: 500 | J8: 500 | K8: 500 | L8: 500 | M8: 500 | N8: 500 | O8: 500 | P8: 6000
P9: 0
P10: 0
C11: Total | D11: =+SUM(D6:D10) -> 17500 | E11: =+SUM(E6:E10) -> 17500 | F11: 17500 | G11: 32500 | H11: 17500 | I11: 17500 | J11: 21500 | K11: 17500 | L11: 17500 | M11: 17500 | N11: 17500 | O11: 27500 | P11: 239000
C13: Chi cố định | D13: T1 | E13: T2 | F13: T3 | G13: T4 | H13: T5 | I13: T6 | J13: T7 | K13: T8 | L13: T9 | M13: T10 | N13: T11 | O13: T12 | P13: Tổng | S13: Tổng hợp
C14: Thuê nhà | D14: 2500 | E14: 2500 | F14: 2500 | G14: 2500 | H14: 2500 | I14: 2500 | J14: 2500 | K14: 2500 | L14: 2500 | M14: 2500 | N14: 2500 | O14: 2500 | P14: =SUM(D14:O14) -> 30000 | S14: Thu nhập | T14: =+P11 -> 239000
C15: Điện thoại | D15: 500 | E15: 500 | F15: 500 | G15: 500 | H15: 500 | I15: 500 | J15: 500 | K15: 500 | L15: 500 | M15: 500 | N15: 500 | O15: 500 | P15: 6000 | S15: Chi tiêu | T15: =P19+P30+P38 -> 118450
C16: Mạng internet | D16: 300 | E16: 300 | F16: 300 | G16: 300 | H16: 300 | I16: 300 | J16: 300 | K16: 300 | L16: 300 | M16: 300 | N16: 300 | O16: 300 | P16: 3600 | S16: Tiết kiệm - Đầu tư | T16: =+P53 -> 56550
C17: Tiền học cho con | D17: 1675 | E17: 1675 | F17: 1675 | G17: 1675 | H17: 1675 | I17: 1675 | J17: 1675 | K17: 1675 | L17: 1675 | M17: 1675 | N17: 1675 | O17: 1675 | P17: 20100 | S17: Trả nợ | T17: =+P46 -> 35000
P18: 0 | S18: Còn lại | T18: =+T14-SUM(T15:T17) -> 29000
C19: Total | D19: =SUM(D14:D18) -> 4975 | E19: 4975 | F19: 4975 | G19: 4975 | H19: 4975 | I19: 4975 | J19: 4975 | K19: 4975 | L19: 4975 | M19: 4975 | N19: 4975 | O19: 4975 | P19: 59700
C21: Chi thường xuyên | D21: T1 | E21: T2 | F21: T3 | G21: T4 | H21: T5 | I21: T6 | J21: T7 | K21: T8 | L21: T9 | M21: T10 | N21: T11 | O21: T12 | P21: Tổng | S21: Các chỉ số quan trọng
C22: Thức ăn | D22: 3000 | E22: 3000 | F22: 3000 | G22: 3000 | H22: 3000 | I22: 3000 | J22: 3000 | K22: 3000 | L22: 3000 | M22: 3000 | N22: 3000 | O22: 3000 | P22: =SUM(D22:O22) -> 36000 | S22: Tỉ lệ tiết kiệm | T22: =+T16/T14 -> 0.2366108787 | V22: Tỉ lệ tiết kiệm khuyến khích: > 50%
C23: Điện | D23: 200 | E23: 250 | F23: 200 | G23: 200 | H23: 400 | I23: 400 | J23: 400 | K23: 400 | L23: 400 | M23: 300 | N23: 300 | O23: 300 | P23: 3750 | S23: Tỉ lệ trả nợ/ thu nhập | T23: =+T17/T14 -> 0.1464435146
P24: 0
P25: 0
P26: 0
P27: 0
P28: 0
P29: 0
C30: Total | D30: =SUM(D22:D29) -> 3200 | E30: =SUM(E22:E29) -> 3250 | F30: =SUM(F22:F29) -> 3200 | G30: =SUM(G22:G29) -> 3200 | H30: =SUM(H22:H29) -> 3400 | I30: =SUM(I22:I29) -> 3400 | J30: =SUM(J22:J29) -> 3400 | K30: =SUM(K22:K29) -> 3400 | L30: =SUM(L22:L29) -> 3400 | M30: =SUM(M22:M29) -> 3300 | N30: =SUM(N22:N29) -> 3300 | O30: =SUM(O22:O29) -> 3300 | P30: 39750
C32: Chi bất thường | D32: T1 | E32: T2 | F32: T3 | G32: T4 | H32: T5 | I32: T6 | J32: T7 | K32: T8 | L32: T9 | M32: T10 | N32: T11 | O32: T12 | P32: Tổng
C33: Đi lại + về quê | D33: 200 | E33: 200 | F33: 200 | G33: 200 | H33: 200 | I33: 200 | J33: 200 | K33: 200 | L33: 200 | M33: 200 | N33: 200 | O33: 200 | P33: =SUM(D33:O33) -> 2400
C34: Khám bệnh | D34: 500 | E34: 500 | F34: 500 | G34: 500 | H34: 500 | I34: 500 | J34: 500 | K34: 500 | L34: 500 | M34: 500 | N34: 500 | O34: 500 | P34: 6000
C35: Du lịch | D35: 200 | E35: 200 | F35: 200 | G35: 200 | H35: 200 | P35: 1000
C36: Khác | D36: 1000 | E36: 1000 | F36: 1000 | G36: 1000 | H36: 1000 | I36: 1000 | J36: 1000 | K36: 1000 | L36: 1000 | M36: 1000 | N36: 1000 | O36: 1000 | P36: =SUM(D36:O36) -> 12000
P37: 0
C38: Total | D38: =SUM(D34:D37) -> 1700 | E38: 1700 | F38: 1700 | G38: 1700 | H38: 1700 | I38: 1500 | J38: 1500 | K38: 1500 | L38: 1500 | M38: 1500 | N38: 1500 | O38: 1500 | P38: 19000
C40: Trả nợ | D40: T1 | E40: T2 | F40: T3 | G40: T4 | H40: T5 | I40: T6 | J40: T7 | K40: T8 | L40: T9 | M40: T10 | N40: T11 | O40: T12 | P40: Tổng
C41: Vay Mua nhà | I41: 5000 | J41: 5000 | K41: 5000 | L41: 5000 | M41: 5000 | N41: 5000 | O41: 5000 | P41: =SUM(D41:O41) -> 35000
C42: Mua xe | P42: 0
C43: Vay nợ cá nhân | P43: 0
C44: Thẻ tín dụng | P44: 0
P45: 0
C46: Total | D46: =SUM(D41:D43) -> 0 | E46: =SUM(E41:E43) -> 0 | F46: 0 | G46: 0 | H46: 0 | I46: 5000 | J46: 5000 | K46: 5000 | L46: 5000 | M46: 5000 | N46: 5000 | O46: 5000 | P46: 35000
C48: Tiết kiệm & đầu tư | D48: T1 | E48: T2 | F48: T3 | G48: T4 | H48: T5 | I48: T6 | J48: T7 | K48: T8 | L48: T9 | M48: T10 | N48: T11 | O48: T12 | P48: Tổng
C49: TK Ngân hàng | D49: 7625 | E49: 7575 | F49: 7625 | G49: 7625 | H49: 7425 | I49: 2625 | J49: 2625 | K49: 2625 | L49: 2625 | M49: 2725 | N49: 2725 | O49: 2725 | P49: =SUM(D49:O49) -> 56550
C50: Bảo hiểm | P50: 0
C51: Đầu tư | P51: 0
P52: 0
C53: Total | D53: =SUM(D49:D50) -> 7625 | E53: =SUM(E49:E50) -> 7575 | F53: 7625 | G53: 7625 | H53: 7425 | I53: 2625 | J53: 2625 | K53: 2625 | L53: 2625 | M53: 2725 | N53: 2725 | O53: 2725 | P53: 56550
D55: T1 | E55: T2 | F55: T3 | G55: T4 | H55: T5 | I55: T6 | J55: T7 | K55: T8 | L55: T9 | M55: T10 | N55: T11 | O55: T12 | P55: Tổng
C56: Chênh (Thu nhập - Chi) | D56: =+D11-D19-D30-D38-D46-D53 -> 0 | E56: =+E11-E19-E30-E38-E46-E53 -> 0 | F56: 0 | G56: 15000 | H56: 0 | I56: 0 | J56: 4000 | K56: 0 | L56: 0 | M56: 0 | N56: 0 | O56: 10000 | P56: =SUM(D56:O56) -> 29000

Sheet T1
Q1: Thu nhập | R1: =+N52 -> 18725
Q2: Chi tiêu | R2: =+L42+K52+H52+E52+B52 -> 18505
Q4: Chênh lệch | R4: =+R1-R2 -> 220
B5: Thu nhập | C5: Chi T.xuyên | D5: Chi cố định | E5: Chi B.Thường | F5: Trả nợ | G5: T.kiệm & ĐT | H5: Còn lại | J5: =+IF(L44+H54>=0,"","CẢNH BÁO: CHI THƯỜNG XUYÊN + CHI BÁT THƯỜNG VƯỢT NGÂN SÁCH") -> CẢNH BÁO: CHI THƯỜNG XUYÊN + CHI BÁT THƯỜNG VƯỢT NGÂN SÁCH
A6: Ngân sách | B6: =+N53 -> 17500 | C6: =+L43 -> 3200 | D6: =+B53 -> 4975 | E6: =+H53 -> 1700 | F6: =+E53 -> 0 | G6: =+K53 -> 7625 | H6: =+B6-SUM(C6:G6) -> 0
A7: Thực tế | B7: =+N52 -> 18725 | C7: =+L42 -> 3450 | D7: =+B52 -> 4555 | E7: =+H52 -> 1500 | F7: =+E52 -> 0 | G7: =+K52 -> 9000 | H7: =+B7-SUM(C7:G7) -> 220
A8: Chênh lêch | B8: =+B6-B7 -> -1225 | C8: =+C6-C7 -> -250 | D8: 420 | E8: 200 | F8: 0 | G8: -1375 | P8: ĐVT: Nghìn đồng
A10: Tháng 01 | B10: =IF('Ngan sach'!C22=0, "", 'Ngan sach'!C22) -> Thức ăn | C10: =IF('Ngan sach'!C23=0, "", 'Ngan sach'!C23) -> Điện | D10: =IF('Ngan sach'!C24=0, "", 'Ngan sach'!C24) ->  | E10: =IF('Ngan sach'!C25=0, "", 'Ngan sach'!C25) ->  | F10: =IF('Ngan sach'!C26=0, "", 'Ngan sach'!C26) ->  | G10: =IF('Ngan sach'!C27=0, "", 'Ngan sach'!C27) ->  | H10: =IF('Ngan sach'!C28=0, "", 'Ngan sach'!C28) ->  | I10: =IF('Ngan sach'!C29=0, "", 'Ngan sach'!C29) ->  | L10: Tổng chi | M10: Còn lại | N10: Ghi chú
A11: 1 | B11: 100 | L11: =IF(SUM(B11:K11)=0,"",SUM(B11:K11)) -> 100 | M11: =L43-SUM(B11:K11) -> 3100
A12: 2 | B12: 100 | L12: =IF(SUM(B12:K12)=0," ",SUM(B12:K12)) -> 100 | M12: =M11-SUM(B12:K12) -> 3000
A13: 3 | B13: 100 | L13: 100 | M13: =M12-SUM(B13:K13) -> 2900
A14: 4 | B14: 100 | C14: 100 | L14: 200 | M14: 2700
A15: 5 | B15: 150 | L15: 150 | M15: 2550
A16: 6 | B16: 100 | L16: 100 | M16: 2450
A17: 7 | B17: 100 | L17: 100 | M17: 2350
A18: 8 | B18: 100 | L18: 100 | M18: 2250
A19: 9 | B19: 100 | C19: 300 | L19: 400 | M19: 1850
A20: 10 | B20: 100 | L20: 100 | M20: 1750
A21: 11 | B21: 100 | L21: 100 | M21: 1650
A22: 12 | B22: 200 | L22: 200 | M22: 1450
A23: 13 | B23: 100 | L23: 100 | M23: 1350
A24: 14 | B24: 100 | L24: 100 | M24: 1250
A25: 15 | B25: 100 | L25: 100 | M25: 1150
A26: 16 | B26: 100 | L26: 100 | M26: 1050
A27: 17 | B27: 100 | L27: 100 | M27: 950
A28: 18 | B28: 100 | L28: 100 | M28: 850
A29: 19 | B29: 100 | L29: 100 | M29: 750
A30: 20 | B30: 100 | L30: 100 | M30: 650
A31: 21 | B31: 400 | L31: 400 | M31: 250
A32: 22 | B32: 100 | L32: 100 | M32: 150
A33: 23 | B33: 100 | L33: 100 | M33: 50
A34: 24 | B34: 100 | L34: 100 | M34: -50
A35: 25 | B35: 100 | L35: 100 | M35: -150
A36: 26 | B36: 100 | L36: 100 | M36: -250
A37: 27 | M37: -250
A38: 28 | M38: -250
A39: 29 | M39: -250
A40: 30 | M40: -250
A41: 31 | M41: -250
A42: Đã chi | B42: =IF(SUM(B11:B41)=0,"",SUM(B11:B41)) -> 3050 | C42: =IF(SUM(C11:C41)=0,"",SUM(C11:C41)) -> 400 | D42: =IF(SUM(D11:D41)=0,"",SUM(D11:D41)) ->  | L42: =IF(SUM(L11:L41)=0,0,SUM(L11:L41)) -> 3450 | M42: 0
A43: Ngân sách | B43: ='Ngan sach'!D22 -> 3000 | C43: ='Ngan sach'!D23 -> 200 | D43: ='Ngan sach'!D24 -> 0 | E43: ='Ngan sach'!D25 -> 0 | F43: ='Ngan sach'!D26 -> 0 | G43: ='Ngan sach'!D27 -> 0 | H43: ='Ngan sach'!D28 -> 0 | I43: ='Ngan sach'!D29 -> 0 | L43: =SUM(B43:K43) -> 3200 | M43: 0
A44: Còn lại | B44: =B43-SUM(B11:B41) -> -50 | C44: =C43-SUM(C11:C41) -> -200 | D44: 0 | E44: 0 | F44: 0 | G44: 0 | H44: 0 | I44: 0 | J44: 0 | K44: 0 | L44: -250 | M44: 0
A46: Cố định | D46: Trả nợ | G46: Bất thường | J46: Tiết kiệm & đầu tư | M46: Thu nhập thực tế
A47: =IF('Ngan sach'!$C$14=0," ",'Ngan sach'!$C$14) -> Thuê nhà | B47: 2500 | D47: =IF('Ngan sach'!$C$41=0," ",'Ngan sach'!$C$41) -> Vay Mua nhà | G47: =IF('Ngan sach'!$C$33=0," ",'Ngan sach'!$C$33) -> Đi lại + về quê | H47: 1000 | J47: =IF('Ngan sach'!$C$49=0," ",'Ngan sach'!$C$49) -> TK Ngân hàng | K47: 9000 | M47: =IF('Ngan sach'!$C$6=0," ",'Ngan sach'!$C$6) -> Lương & Thưởng | N47: 16725
A48: =IF('Ngan sach'!$C$15=0," ",'Ngan sach'!$C$15) -> Điện thoại | B48: 200 | D48: =IF('Ngan sach'!$C$42=0," ",'Ngan sach'!$C$42) -> Mua xe | G48: =IF('Ngan sach'!$C$34=0," ",'Ngan sach'!$C$34) -> Khám bệnh | H48: 500 | J48: =IF('Ngan sach'!$C$50=0," ",'Ngan sach'!$C$50) -> Bảo hiểm | M48: =IF('Ngan sach'!$C$7=0," ",'Ngan sach'!$C$7) -> Ngoài giờ | N48: 2000
A49: =IF('Ngan sach'!$C$16=0," ",'Ngan sach'!$C$16) -> Mạng internet | B49: 200 | D49: =IF('Ngan sach'!$C$43=0," ",'Ngan sach'!$C$43) -> Vay nợ cá nhân | G49: =IF('Ngan sach'!$C$35=0," ",'Ngan sach'!$C$35) -> Du lịch | J49: =IF('Ngan sach'!$C$51=0," ",'Ngan sach'!$C$51) -> Đầu tư | M49: =IF('Ngan sach'!$C$8=0," ",'Ngan sach'!$C$8) -> Lãi
A50: =IF('Ngan sach'!$C$17=0," ",'Ngan sach'!$C$17) -> Tiền học cho con | B50: 1655 | D50: =IF('Ngan sach'!$C$44=0," ",'Ngan sach'!$C$44) -> Thẻ tín dụng | G50: =IF('Ngan sach'!$C$36=0," ",'Ngan sach'!$C$36) -> Khác | M50: =IF('Ngan sach'!$C$9=0," ",'Ngan sach'!$C$8) -> 
A51: =IF('Ngan sach'!$C$18=0," ",'Ngan sach'!$C$18) ->  | D51: =IF('Ngan sach'!$C$45=0," ",'Ngan sach'!$C$45) ->  | G51: =IF('Ngan sach'!$C$37=0," ",'Ngan sach'!$C$37) -> 
A52: Tổng thực tế | B52: =SUM(B47:B51) -> 4555 | D52: Tổng thực tế | E52: =SUM(E47:E51) -> 0 | G52: Tổng thực tế | H52: =SUM(H47:H51) -> 1500 | J52: Tổng thực tế | K52: =SUM(K47:K51) -> 9000 | M52: Tổng thực tế | N52: =SUM(N47:N50) -> 18725
A53: Ngân sách | B53: =+'Ngan sach'!D19 -> 4975 | D53: Ngân sách | E53: =+'Ngan sach'!D46 -> 0 | G53: Ngân sách | H53: =+'Ngan sach'!D38 -> 1700 | J53: Ngân sách | K53: =+'Ngan sach'!D53 -> 7625 | M53: Ngân sách | N53: =+'Ngan sach'!D11 -> 17500
A54: Chênh lệch | B54: =B53-B52 -> 420 | D54: Chênh lệch | E54: =E53-E52 -> 0 | G54: Chênh lệch | H54: =H53-H52 -> 200 | J54: Chênh lệch | K54: =K53-K52 -> -1375 | M54: Chênh lệch | N54: =N53-N52 -> -1225

Sheet T2
Q1: Thu nhập | R1: =+N52 -> 21725
Q2: Chi tiêu | R2: =+B52+E52+H52+K52+L42 -> 21555
Q3: Chênh lệch | R3: =+R1-R2 -> 170
B5: Thu nhập | C5: Chi T.xuyên | D5: Chi cố định | E5: Chi B.Thường | F5: Trả nợ | G5: T.kiệm & ĐT | H5: Còn lại | J5: =+IF(L44+H54>=0,"","CẢNH BÁO: CHI THƯỜNG XUYÊN + CHI BẤT THƯỜNG VƯỢT NGÂN SÁCH") -> CẢNH BÁO: CHI THƯỜNG XUYÊN + CHI BẤT THƯỜNG VƯỢT NGÂN SÁCH
A6: Ngân sách | B6: =+N53 -> 17500 | C6: =+L43 -> 3250 | D6: =+B53 -> 4975 | E6: =+H53 -> 1700 | F6: =+E53 -> 0 | G6: =+K53 -> 7575 | H6: =+B6-SUM(C6:G6) -> 0
A7: Thực tế | B7: =+N52 -> 21725 | C7: =+L42 -> 3000 | D7: =+B52 -> 4555 | E7: =+H52 -> 2000 | F7: =+E52 -> 0 | G7: =+K52 -> 12000 | H7: =+B7-SUM(C7:G7) -> 170
A8: Chênh lêch | B8: =+B6-B7 -> -4225 | C8: =+C6-C7 -> 250 | D8: 420 | E8: -300 | F8: 0 | G8: -4425 | P8: ĐVT: Nghìn đồng
A10: Tháng 02 | B10: =IF('Ngan sach'!C22=0, "", 'Ngan sach'!C22) -> Thức ăn | C10: =IF('Ngan sach'!C23=0, "", 'Ngan sach'!C23) -> Điện | D10: =IF('Ngan sach'!C24=0, "", 'Ngan sach'!C24) ->  | E10: =IF('Ngan sach'!C25=0, "", 'Ngan sach'!C25) ->  | F10: =IF('Ngan sach'!C26=0, "", 'Ngan sach'!C26) ->  | G10: =IF('Ngan sach'!C27=0, "", 'Ngan sach'!C27) ->  | H10: =IF('Ngan sach'!C28=0, "", 'Ngan sach'!C28) ->  | I10: =IF('Ngan sach'!C29=0, "", 'Ngan sach'!C29) ->  | M10: Còn lại | N10: Ghi chú
A11: 1 | B11: 100 | L11: =IF(SUM(B11:K11)=0,"",SUM(B11:K11)) -> 100 | M11: =L43-SUM(B11:K11) -> 3150
A12: 2 | B12: 100 | L12: =IF(SUM(B12:K12)=0," ",SUM(B12:K12)) -> 100 | M12: =M11-SUM(B12:K12) -> 3050
A13: 3 | B13: 100 | L13: 100 | M13: =M12-SUM(B13:K13) -> 2950
A14: 4 | B14: 100 | C14: 400 | L14: 500 | M14: 2450
A15: 5 | B15: 100 | L15: 100 | M15: 2350
A16: 6 | B16: 100 | L16: 100 | M16: 2250
A17: 7 | B17: 100 | L17: 100 | M17: 2150
A18: 8 | B18: 100 | L18: 100 | M18: 2050
A19: 9 | B19: 100 | L19: 100 | M19: 1950
A20: 10 | B20: 100 | L20: 100 | M20: 1850
A21: 11 | B21: 100 | L21: 100 | M21: 1750
A22: 12 | B22: 100 | L22: 100 | M22: 1650
A23: 13 | B23: 100 | L23: 100 | M23: 1550
A24: 14 | B24: 100 | L24: 100 | M24: 1450
A25: 15 | B25: 100 | L25: 100 | M25: 1350
A26: 16 | B26: 100 | L26: 100 | M26: 1250
A27: 17 | B27: 100 | L27: 100 | M27: 1150
A28: 18 | B28: 100 | L28: 100 | M28: 1050
A29: 19 | B29: 100 | L29: 100 | M29: 950
A30: 20 | B30: 100 | L30: 100 | M30: 850
A31: 21 | B31: 100 | L31: 100 | M31: 750
A32: 22 | B32: 100 | L32: 100 | M32: 650
A33: 23 | B33: 100 | L33: 100 | M33: 550
A34: 24 | B34: 100 | L34: 100 | M34: 450
A35: 25 | B35: 100 | L35: 100 | M35: 350
A36: 26 | B36: 100 | L36: 100 | M36: 250
A37: 27 | M37: 250
A38: 28 | M38: 250
M39: 250
M40: 250
M41: 250
A42: Đã chi | B42: =IF(SUM(B11:B41)=0,"",SUM(B11:B41)) -> 2600 | C42: =IF(SUM(C11:C41)=0,"",SUM(C11:C41)) -> 400 | D42: =IF(SUM(D11:D41)=0,"",SUM(D11:D41)) ->  | L42: =IF(SUM(L11:L41)=0,0,SUM(L11:L41)) -> 3000
A43: Ngân sách | B43: ='Ngan sach'!E22 -> 3000 | C43: ='Ngan sach'!E23 -> 250 | D43: ='Ngan sach'!E24 -> 0 | E43: ='Ngan sach'!E25 -> 0 | F43: ='Ngan sach'!E26 -> 0 | G43: ='Ngan sach'!E27 -> 0 | H43: ='Ngan sach'!E28 -> 0 | I43: ='Ngan sach'!E29 -> 0 | L43: =SUM(B43:K43) -> 3250
A44: Còn lại | B44: =B43-SUM(B11:B41) -> 400 | C44: =C43-SUM(C11:C41) -> -150 | D44: 0 | E44: 0 | F44: 0 | G44: 0 | H44: 0 | I44: 0 | J44: 0 | K44: 0 | L44: 250
A46: Cố định | D46: Trả nợ | G46: Bất thường | J46: Tiết kiệm & đầu tư | M46: Thu nhập thực tế
A47: =IF('Ngan sach'!$C$14=0," ",'Ngan sach'!$C$14) -> Thuê nhà | B47: 2500 | D47: =IF('Ngan sach'!$C$41=0," ",'Ngan sach'!$C$41) -> Vay Mua nhà | G47: =IF('Ngan sach'!$C$33=0," ",'Ngan sach'!$C$33) -> Đi lại + về quê | H47: 2000 | J47: =IF('Ngan sach'!$C$49=0," ",'Ngan sach'!$C$49) -> TK Ngân hàng | K47: 12000 | M47: =IF('Ngan sach'!$C$6=0," ",'Ngan sach'!$C$6) -> Lương & Thưởng | N47: 16725
A48: =IF('Ngan sach'!$C$15=0," ",'Ngan sach'!$C$15) -> Điện thoại | B48: 200 | D48: =IF('Ngan sach'!$C$42=0," ",'Ngan sach'!$C$42) -> Mua xe | G48: =IF('Ngan sach'!$C$34=0," ",'Ngan sach'!$C$34) -> Khám bệnh | J48: =IF('Ngan sach'!$C$50=0," ",'Ngan sach'!$C$50) -> Bảo hiểm | M48: =IF('Ngan sach'!$C$7=0," ",'Ngan sach'!$C$7) -> Ngoài giờ | N48: 5000
A49: =IF('Ngan sach'!$C$16=0," ",'Ngan sach'!$C$16) -> Mạng internet | B49: 200 | D49: =IF('Ngan sach'!$C$43=0," ",'Ngan sach'!$C$43) -> Vay nợ cá nhân | G49: =IF('Ngan sach'!$C$35=0," ",'Ngan sach'!$C$35) -> Du lịch | J49: =IF('Ngan sach'!$C$51=0," ",'Ngan sach'!$C$51) -> Đầu tư | M49: =IF('Ngan sach'!$C$8=0," ",'Ngan sach'!$C$8) -> Lãi
A50: =IF('Ngan sach'!$C$17=0," ",'Ngan sach'!$C$17) -> Tiền học cho con | B50: 1655 | D50: =IF('Ngan sach'!$C$44=0," ",'Ngan sach'!$C$44) -> Thẻ tín dụng | G50: =IF('Ngan sach'!$C$36=0," ",'Ngan sach'!$C$36) -> Khác | M50: =IF('Ngan sach'!$C$9=0," ",'Ngan sach'!$C$8) -> 
A51: =IF('Ngan sach'!$C$18=0," ",'Ngan sach'!$C$18) ->  | D51: =IF('Ngan sach'!$C$45=0," ",'Ngan sach'!$C$45) ->  | G51: =IF('Ngan sach'!$C$37=0," ",'Ngan sach'!$C$37) ->  | M51: =IF('Ngan sach'!$C$9=0," ",'Ngan sach'!$C$8) -> 
A52: Tổng thực tế | B52: =SUM(B47:B51) -> 4555 | D52: Tổng thực tế | E52: =SUM(E47:E51) -> 0 | G52: Tổng thực tế | H52: =SUM(H47:H51) -> 2000 | J52: Tổng thực tế | K52: =SUM(K47:K51) -> 12000 | M52: Tổng thực tế | N52: =SUM(N47:N50) -> 21725
A53: Ngân sách | B53: =+'Ngan sach'!E19 -> 4975 | D53: Ngân sách | E53: =+'Ngan sach'!E46 -> 0 | G53: Ngân sách | H53: =+'Ngan sach'!E38 -> 1700 | J53: Ngân sách | K53: =+'Ngan sach'!E53 -> 7575 | M53: Ngân sách | N53: =+'Ngan sach'!E11 -> 17500
A54: Chênh lệch | B54: =B53-B52 -> 420 | D54: Chênh lệch | E54: =E53-E52 -> 0 | G54: Chênh lệch | H54: =H53-H52 -> -300 | J54: Chênh lệch | K54: =K53-K52 -> -4425 | M54: Chênh lệch | N54: =N53-N52 -> -4225

Sheet T3
Q1: Thu nhập | R1: =+N52 -> 19725
Q2: Chi tiêu | R2: =+B52+E52+H52+K52+L42 -> 19555
Q4: Chênh lệch | R4: =+R1-R2 -> 170
B5: Thu nhập | C5: Chi T.xuyên | D5: Chi cố định | E5: Chi B.Thường | F5: Trả nợ | G5: T.kiệm & ĐT | H5: Còn lại | J5: =+IF(L44+H54>=0,"","CẢNH BÁO: CHI THƯỜNG XUYÊN + CHI BẤT THƯỜNG VƯỢT NGÂN SÁCH") -> 
A6: Ngân sách | B6: =+N53 -> 17500 | C6: =+L43 -> 3200 | D6: =+B53 -> 4975 | E6: =+H53 -> 1700 | F6: =+E53 -> 0 | G6: =+K53 -> 7625 | H6: =+B6-SUM(C6:G6) -> 0
A7: Thực tế | B7: =+N52 -> 19725 | C7: =+L42 -> 3500 | D7: =+B52 -> 4555 | E7: =+H52 -> 0 | F7: =+E52 -> 0 | G7: =+K52 -> 11500 | H7: =+B7-SUM(C7:G7) -> 170
A8: Chênh lêch | B8: =+B6-B7 -> -2225 | C8: =+C6-C7 -> -300 | D8: 420 | E8: 1700 | F8: 0 | G8: -3875 | P8: ĐVT: Nghìn đồng
A10: Tháng 03 | B10: =IF('Ngan sach'!C22=0, "", 'Ngan sach'!C22) -> Thức ăn | C10: =IF('Ngan sach'!C23=0, "", 'Ngan sach'!C23) -> Điện | D10: =IF('Ngan sach'!C24=0, "", 'Ngan sach'!C24) ->  | E10: =IF('Ngan sach'!C25=0, "", 'Ngan sach'!C25) ->  | F10: =IF('Ngan sach'!C26=0, "", 'Ngan sach'!C26) ->  | G10: =IF('Ngan sach'!C27=0, "", 'Ngan sach'!C27) ->  | H10: =IF('Ngan sach'!C28=0, "", 'Ngan sach'!C28) ->  | I10: =IF('Ngan sach'!C29=0, "", 'Ngan sach'!C29) ->  | L10: Tổng chi | M10: Còn lại | N10: Ghi chú
A11: 1 | B11: 100 | L11: =IF(SUM(B11:K11)=0,"",SUM(B11:K11)) -> 100 | M11: =L43-SUM(B11:K11) -> 3100
A12: 2 | B12: 100 | L12: =IF(SUM(B12:K12)=0," ",SUM(B12:K12)) -> 100 | M12: =M11-SUM(B12:K12) -> 3000
A13: 3 | B13: 100 | L13: 100 | M13: =M12-SUM(B13:K13) -> 2900
A14: 4 | B14: 100 | C14: 400 | L14: 500 | M14: 2400
A15: 5 | B15: 100 | L15: 100 | M15: 2300
A16: 6 | B16: 100 | L16: 100 | M16: 2200
A17: 7 | B17: 100 | L17: 100 | M17: 2100
A18: 8 | B18: 100 | L18: 100 | M18: 2000
A19: 9 | B19: 100 | L19: 100 | M19: 1900
A20: 10 | B20: 100 | L20: 100 | M20: 1800
A21: 11 | B21: 100 | L21: 100 | M21: 1700
A22: 12 | B22: 100 | L22: 100 | M22: 1600
A23: 13 | B23: 100 | L23: 100 | M23: 1500
A24: 14 | B24: 100 | L24: 100 | M24: 1400
A25: 15 | B25: 100 | L25: 100 | M25: 1300
A26: 16 | B26: 100 | L26: 100 | M26: 1200
A27: 17 | B27: 100 | L27: 100 | M27: 1100
A28: 18 | B28: 100 | L28: 100 | M28: 1000
A29: 19 | B29: 100 | L29: 100 | M29: 900
A30: 20 | B30: 100 | L30: 100 | M30: 800
A31: 21 | B31: 100 | L31: 100 | M31: 700
A32: 22 | B32: 100 | L32: 100 | M32: 600
A33: 23 | B33: 100 | L33: 100 | M33: 500
A34: 24 | B34: 100 | L34: 100 | M34: 400
A35: 25 | B35: 100 | L35: 100 | M35: 300
A36: 26 | B36: 100 | L36: 100 | M36: 200
A37: 27 | B37: 100 | L37: 100 | M37: 100
A38: 28 | B38: 100 | L38: 100 | M38: 0
A39: 29 | B39: 100 | L39: 100 | M39: -100
A40: 30 | B40: 100 | L40: 100 | M40: -200
A41: 31 | B41: 100 | L41: 100 | M41: -300
A42: Đã chi | B42: =IF(SUM(B11:B41)=0,"",SUM(B11:B41)) -> 3100 | C42: =IF(SUM(C11:C41)=0,"",SUM(C11:C41)) -> 400 | D42: =IF(SUM(D11:D41)=0,"",SUM(D11:D41)) ->  | L42: =IF(SUM(L11:L41)=0,0,SUM(L11:L41)) -> 3500
A43: Ngân sách | B43: ='Ngan sach'!F22 -> 3000 | C43: ='Ngan sach'!F23 -> 200 | D43: ='Ngan sach'!F24 -> 0 | E43: ='Ngan sach'!F25 -> 0 | F43: ='Ngan sach'!F26 -> 0 | G43: ='Ngan sach'!F27 -> 0 | H43: ='Ngan sach'!F28 -> 0 | I43: ='Ngan sach'!F29 -> 0 | L43: =SUM(B43:K43) -> 3200
A44: Còn lại | B44: =B43-SUM(B11:B41) -> -100 | C44: =C43-SUM(C11:C41) -> -200 | D44: 0 | E44: 0 | F44: 0 | G44: 0 | H44: 0 | I44: 0 | J44: 0 | K44: 0 | L44: -300
A46: Cố định | D46: Trả nợ | G46: Bất thường | J46: Tiết kiệm & đầu tư | M46: Thu nhập thực tế
A47: =IF('Ngan sach'!$C$14=0," ",'Ngan sach'!$C$14) -> Thuê nhà | B47: 2500 | D47: =IF('Ngan sach'!$C$41=0," ",'Ngan sach'!$C$41) -> Vay Mua nhà | G47: =IF('Ngan sach'!$C$33=0," ",'Ngan sach'!$C$33) -> Đi lại + về quê | J47: =IF('Ngan sach'!$C$49=0," ",'Ngan sach'!$C$49) -> TK Ngân hàng | K47: 11500 | M47: =IF('Ngan sach'!$C$6=0," ",'Ngan sach'!$C$6) -> Lương & Thưởng | N47: 16725
A48: =IF('Ngan sach'!$C$15=0," ",'Ngan sach'!$C$15) -> Điện thoại | B48: 200 | D48: =IF('Ngan sach'!$C$42=0," ",'Ngan sach'!$C$42) -> Mua xe | G48: =IF('Ngan sach'!$C$34=0," ",'Ngan sach'!$C$34) -> Khám bệnh | J48: =IF('Ngan sach'!$C$50=0," ",'Ngan sach'!$C$50) -> Bảo hiểm | M48: =IF('Ngan sach'!$C$7=0," ",'Ngan sach'!$C$7) -> Ngoài giờ | N48: 3000
A49: =IF('Ngan sach'!$C$16=0," ",'Ngan sach'!$C$16) -> Mạng internet | B49: 200 | D49: =IF('Ngan sach'!$C$43=0," ",'Ngan sach'!$C$43) -> Vay nợ cá nhân | G49: =IF('Ngan sach'!$C$35=0," ",'Ngan sach'!$C$35) -> Du lịch | J49: =IF('Ngan sach'!$C$51=0," ",'Ngan sach'!$C$51) -> Đầu tư | M49: =IF('Ngan sach'!$C$8=0," ",'Ngan sach'!$C$8) -> Lãi
A50: =IF('Ngan sach'!$C$17=0," ",'Ngan sach'!$C$17) -> Tiền học cho con | B50: 1655 | D50: =IF('Ngan sach'!$C$44=0," ",'Ngan sach'!$C$44) -> Thẻ tín dụng | G50: =IF('Ngan sach'!$C$36=0," ",'Ngan sach'!$C$36) -> Khác | M50: =IF('Ngan sach'!$C$9=0," ",'Ngan sach'!$C$8) -> 
A51: =IF('Ngan sach'!$C$18=0," ",'Ngan sach'!$C$18) ->  | D51: =IF('Ngan sach'!$C$45=0," ",'Ngan sach'!$C$45) ->  | G51: =IF('Ngan sach'!$C$37=0," ",'Ngan sach'!$C$37) ->  | M51: =IF('Ngan sach'!$C$9=0," ",'Ngan sach'!$C$8) -> 
A52: Tổng thực tế | B52: =SUM(B47:B51) -> 4555 | D52: Tổng thực tế | E52: =SUM(E47:E51) -> 0 | G52: Tổng thực tế | H52: =SUM(H47:H51) -> 0 | J52: Tổng thực tế | K52: =SUM(K47:K51) -> 11500 | M52: Tổng thực tế | N52: =SUM(N47:N50) -> 19725
A53: Ngân sách | B53: =+'Ngan sach'!F19 -> 4975 | D53: Ngân sách | E53: =+'Ngan sach'!F46 -> 0 | G53: Ngân sách | H53: =+'Ngan sach'!F38 -> 1700 | J53: Ngân sách | K53: =+'Ngan sach'!F53 -> 7625 | M53: Ngân sách | N53: =+'Ngan sach'!F11 -> 17500
A54: Chênh lệch | B54: =B53-B52 -> 420 | D54: Chênh lệch | E54: =E53-E52 -> 0 | G54: Chênh lệch | H54: =H53-H52 -> 1700 | J54: Chênh lệch | K54: =K53-K52 -> -3875 | M54: Chênh lệch | N54: =N53-N52 -> -2225

Sheet T4
Q1: Thu nhập | R1: =+N52 -> 31500
Q2: Chi tiêu | R2: =+B52+E52+H52+K52+L42 -> 31555
Q4: Chênh lệch | R4: =+R1-R2 -> -55
B5: Thu nhập | C5: Chi T.xuyên | D5: Chi cố định | E5: Chi B.Thường | F5: Trả nợ | G5: T.kiệm & ĐT | H5: Còn lại | J5: =+IF(L44+H54>=0,"","CẢNH BÁO: CHI THƯỜNG XUYÊN + CHI BẤT THƯỜNG VƯỢT NGÂN SÁCH") -> 
A6: Ngân sách | B6: =+N53 -> 32500 | C6: =+L43 -> 3200 | D6: =+B53 -> 4975 | E6: =+H53 -> 1700 | F6: =+E53 -> 0 | G6: =+K53 -> 7625 | H6: =+B6-SUM(C6:G6) -> 15000
A7: Thực tế | B7: =+N52 -> 31500 | C7: =+L42 -> 3000 | D7: =+B52 -> 4555 | E7: =+H52 -> 0 | F7: =+E52 -> 0 | G7: =+K52 -> 24000 | H7: =+B7-SUM(C7:G7) -> -55
A8: Chênh lêch | B8: =+B6-B7 -> 1000 | C8: =+C6-C7 -> 200 | D8: 420 | E8: 1700 | F8: 0 | G8: -16375 | P8: ĐVT: Nghìn đồng
A10: Tháng 04 | B10: =IF('Ngan sach'!C22=0, "", 'Ngan sach'!C22) -> Thức ăn | C10: =IF('Ngan sach'!C23=0, "", 'Ngan sach'!C23) -> Điện | D10: =IF('Ngan sach'!C24=0, "", 'Ngan sach'!C24) ->  | E10: =IF('Ngan sach'!C25=0, "", 'Ngan sach'!C25) ->  | F10: =IF('Ngan sach'!C26=0, "", 'Ngan sach'!C26) ->  | G10: =IF('Ngan sach'!C27=0, "", 'Ngan sach'!C27) ->  | H10: =IF('Ngan sach'!C28=0, "", 'Ngan sach'!C28) ->  | I10: =IF('Ngan sach'!C29=0, "", 'Ngan sach'!C29) ->  | L10: Tổng chi | M10: Còn lại | N10: Ghi chú
A11: 1 | B11: 100 | L11: =IF(SUM(B11:K11)=0,"",SUM(B11:K11)) -> 100 | M11: =L43-SUM(B11:K11) -> 3100
A12: 2 | B12: 100 | L12: =IF(SUM(B12:K12)=0," ",SUM(B12:K12)) -> 100 | M12: =M11-SUM(B12:K12) -> 3000
A13: 3 | B13: 100 | L13: 100 | M13: =M12-SUM(B13:K13) -> 2900
A14: 4 | B14: 100 | C14: 400 | L14: 500 | M14: 2400
A15: 5 | B15: 100 | L15: 100 | M15: 2300
A16: 6 | B16: 100 | L16: 100 | M16: 2200
A17: 7 | B17: 100 | L17: 100 | M17: 2100
A18: 8 | B18: 100 | L18: 100 | M18: 2000
A19: 9 | B19: 100 | L19: 100 | M19: 1900
A20: 10 | B20: 100 | L20: 100 | M20: 1800
A21: 11 | B21: 100 | L21: 100 | M21: 1700
A22: 12 | B22: 100 | L22: 100 | M22: 1600
A23: 13 | B23: 100 | L23: 100 | M23: 1500
A24: 14 | B24: 100 | L24: 100 | M24: 1400
A25: 15 | B25: 100 | L25: 100 | M25: 1300
A26: 16 | B26: 100 | L26: 100 | M26: 1200
A27: 17 | B27: 100 | L27: 100 | M27: 1100
A28: 18 | B28: 100 | L28: 100 | M28: 1000
A29: 19 | B29: 100 | L29: 100 | M29: 900
A30: 20 | B30: 100 | L30: 100 | M30: 800
A31: 21 | B31: 100 | L31: 100 | M31: 700
A32: 22 | B32: 100 | L32: 100 | M32: 600
A33: 23 | B33: 100 | L33: 100 | M33: 500
A34: 24 | B34: 100 | L34: 100 | M34: 400
A35: 25 | B35: 100 | L35: 100 | M35: 300
A36: 26 | B36: 100 | L36: 100 | M36: 200
A37: 27 | M37: 200
A38: 28 | M38: 200
A39: 29 | M39: 200
A40: 30 | M40: 200
M41: 200
A42: Đã chi | B42: =IF(SUM(B11:B41)=0,"",SUM(B11:B41)) -> 2600 | C42: =IF(SUM(C11:C41)=0,"",SUM(C11:C41)) -> 400 | D42: =IF(SUM(D11:D41)=0,"",SUM(D11:D41)) ->  | L42: =IF(SUM(L11:L41)=0,0,SUM(L11:L41)) -> 3000
A43: Ngân sách | B43: ='Ngan sach'!G22 -> 3000 | C43: ='Ngan sach'!G23 -> 200 | D43: ='Ngan sach'!G24 -> 0 | E43: ='Ngan sach'!G25 -> 0 | F43: ='Ngan sach'!G26 -> 0 | G43: ='Ngan sach'!G27 -> 0 | H43: ='Ngan sach'!G28 -> 0 | I43: ='Ngan sach'!G29 -> 0 | L43: =SUM(B43:K43) -> 3200
A44: Còn lại | B44: =B43-SUM(B11:B41) -> 400 | C44: =C43-SUM(C11:C41) -> -200 | D44: 0 | E44: 0 | F44: 0 | G44: 0 | H44: 0 | I44: 0 | J44: 0 | K44: 0 | L44: 200
A46: Cố định | D46: Trả nợ | G46: Bất thường | J46: Tiết kiệm & đầu tư | M46: Thu nhập thực tế
A47: =IF('Ngan sach'!$C$14=0," ",'Ngan sach'!$C$14) -> Thuê nhà | B47: 2500 | D47: =IF('Ngan sach'!$C$41=0," ",'Ngan sach'!$C$41) -> Vay Mua nhà | G47: =IF('Ngan sach'!$C$33=0," ",'Ngan sach'!$C$33) -> Đi lại + về quê | J47: =IF('Ngan sach'!$C$49=0," ",'Ngan sach'!$C$49) -> TK Ngân hàng | K47: 24000 | M47: =IF('Ngan sach'!$C$6=0," ",'Ngan sach'!$C$6) -> Lương & Thưởng | N47: 31500
A48: =IF('Ngan sach'!$C$15=0," ",'Ngan sach'!$C$15) -> Điện thoại | B48: 200 | D48: =IF('Ngan sach'!$C$42=0," ",'Ngan sach'!$C$42) -> Mua xe | G48: =IF('Ngan sach'!$C$34=0," ",'Ngan sach'!$C$34) -> Khám bệnh | J48: =IF('Ngan sach'!$C$50=0," ",'Ngan sach'!$C$50) -> Bảo hiểm | M48: =IF('Ngan sach'!$C$7=0," ",'Ngan sach'!$C$7) -> Ngoài giờ
A49: =IF('Ngan sach'!$C$16=0," ",'Ngan sach'!$C$16) -> Mạng internet | B49: 200 | D49: =IF('Ngan sach'!$C$43=0," ",'Ngan sach'!$C$43) -> Vay nợ cá nhân | G49: =IF('Ngan sach'!$C$35=0," ",'Ngan sach'!$C$35) -> Du lịch | J49: =IF('Ngan sach'!$C$51=0," ",'Ngan sach'!$C$51) -> Đầu tư | M49: =IF('Ngan sach'!$C$8=0," ",'Ngan sach'!$C$8) -> Lãi
A50: =IF('Ngan sach'!$C$17=0," ",'Ngan sach'!$C$17) -> Tiền học cho con | B50: 1655 | D50: =IF('Ngan sach'!$C$44=0," ",'Ngan sach'!$C$44) -> Thẻ tín dụng | G50: =IF('Ngan sach'!$C$36=0," ",'Ngan sach'!$C$36) -> Khác | M50: =IF('Ngan sach'!$C$9=0," ",'Ngan sach'!$C$8) -> 
A51: =IF('Ngan sach'!$C$18=0," ",'Ngan sach'!$C$18) ->  | D51: =IF('Ngan sach'!$C$45=0," ",'Ngan sach'!$C$45) ->  | G51: =IF('Ngan sach'!$C$37=0," ",'Ngan sach'!$C$37) ->  | M51: =IF('Ngan sach'!$C$9=0," ",'Ngan sach'!$C$8) -> 
A52: Tổng thực tế | B52: =SUM(B47:B51) -> 4555 | D52: Tổng thực tế | E52: =SUM(E47:E51) -> 0 | G52: Tổng thực tế | H52: =SUM(H47:H51) -> 0 | J52: Tổng thực tế | K52: =SUM(K47:K51) -> 24000 | M52: Tổng thực tế | N52: =SUM(N47:N50) -> 31500
A53: Ngân sách | B53: =+'Ngan sach'!G19 -> 4975 | D53: Ngân sách | E53: =+'Ngan sach'!G46 -> 0 | G53: Ngân sách | H53: =+'Ngan sach'!G38 -> 1700 | J53: Ngân sách | K53: =+'Ngan sach'!G53 -> 7625 | M53: Ngân sách | N53: =+'Ngan sach'!G11 -> 32500
A54: Chênh lệch | B54: =B53-B52 -> 420 | D54: Chênh lệch | E54: =E53-E52 -> 0 | G54: Chênh lệch | H54: =H53-H52 -> 1700 | J54: Chênh lệch | K54: =K53-K52 -> -16375 | M54: Chênh lệch | N54: =N53-N52 -> 1000

Sheet T5
Q1: Thu nhập | R1: =+N52 -> 16725
Q2: Chi tiêu | R2: =+B52+E52+H52+K52+L42 -> 16555
Q4: Chênh lệch | R4: =+R1-R2 -> 170
B5: Thu nhập | C5: Chi T.xuyên | D5: Chi cố định | E5: Chi B.Thường | F5: Trả nợ | G5: T.kiệm & ĐT | H5: Còn lại | J5: =+IF(L44+H54>=0,"","CẢNH BÁO: CHI THƯỜNG XUYÊN + CHI BẤT THƯỜNG VƯỢT NGÂN SÁCH") -> 
A6: Ngân sách | B6: =+N53 -> 17500 | C6: =+L43 -> 3400 | D6: =+B53 -> 4975 | E6: =+H53 -> 1700 | F6: =+E53 -> 0 | G6: =+K53 -> 7425 | H6: =+B6-SUM(C6:G6) -> 0
A7: Thực tế | B7: =+N52 -> 16725 | C7: =+L42 -> 3500 | D7: =+B52 -> 4555 | E7: =+H52 -> 0 | F7: =+E52 -> 0 | G7: =+K52 -> 8500 | H7: =+B7-SUM(C7:G7) -> 170
A8: Chênh lêch | B8: =+B6-B7 -> 775 | C8: =+C6-C7 -> -100 | D8: 420 | E8: 1700 | F8: 0 | G8: -1075 | P8: ĐVT: Nghìn đồng
A10: Tháng 05 | B10: =IF('Ngan sach'!C22=0, "", 'Ngan sach'!C22) -> Thức ăn | C10: =IF('Ngan sach'!C23=0, "", 'Ngan sach'!C23) -> Điện | D10: =IF('Ngan sach'!C24=0, "", 'Ngan sach'!C24) ->  | E10: =IF('Ngan sach'!C25=0, "", 'Ngan sach'!C25) ->  | F10: =IF('Ngan sach'!C26=0, "", 'Ngan sach'!C26) ->  | G10: =IF('Ngan sach'!C27=0, "", 'Ngan sach'!C27) ->  | H10: =IF('Ngan sach'!C28=0, "", 'Ngan sach'!C28) ->  | I10: =IF('Ngan sach'!C29=0, "", 'Ngan sach'!C29) ->  | L10: Tổng chi | M10: Còn lại | N10: Ghi chú
A11: 1 | B11: 100 | L11: =IF(SUM(B11:K11)=0,"",SUM(B11:K11)) -> 100 | M11: =L43-SUM(B11:K11) -> 3300
A12: 2 | B12: 100 | L12: =IF(SUM(B12:K12)=0," ",SUM(B12:K12)) -> 100 | M12: =M11-SUM(B12:K12) -> 3200
A13: 3 | B13: 100 | L13: 100 | M13: =M12-SUM(B13:K13) -> 3100
A14: 4 | B14: 100 | C14: 400 | L14: 500 | M14: 2600
A15: 5 | B15: 100 | L15: 100 | M15: 2500
A16: 6 | B16: 100 | L16: 100 | M16: 2400
A17: 7 | B17: 100 | L17: 100 | M17: 2300
A18: 8 | B18: 100 | L18: 100 | M18: 2200
A19: 9 | B19: 100 | L19: 100 | M19: 2100
A20: 10 | B20: 100 | L20: 100 | M20: 2000
A21: 11 | B21: 100 | L21: 100 | M21: 1900
A22: 12 | B22: 100 | L22: 100 | M22: 1800
A23: 13 | B23: 100 | L23: 100 | M23: 1700
A24: 14 | B24: 100 | L24: 100 | M24: 1600
A25: 15 | B25: 100 | L25: 100 | M25: 1500
A26: 16 | B26: 100 | L26: 100 | M26: 1400
A27: 17 | B27: 100 | L27: 100 | M27: 1300
A28: 18 | B28: 100 | L28: 100 | M28: 1200
A29: 19 | B29: 100 | L29: 100 | M29: 1100
A30: 20 | B30: 100 | L30: 100 | M30: 1000
A31: 21 | B31: 100 | L31: 100 | M31: 900
A32: 22 | B32: 100 | L32: 100 | M32: 800
A33: 23 | B33: 100 | L33: 100 | M33: 700
A34: 24 | B34: 100 | L34: 100 | M34: 600
A35: 25 | B35: 100 | L35: 100 | M35: 500
A36: 26 | B36: 100 | L36: 100 | M36: 400
A37: 27 | B37: 100 | L37: 100 | M37: 300
A38: 28 | B38: 100 | L38: 100 | M38: 200
A39: 29 | B39: 100 | L39: 100 | M39: 100
A40: 30 | B40: 100 | L40: 100 | M40: 0
A41: 31 | B41: 100 | L41: 100 | M41: -100
A42: Đã chi | B42: =IF(SUM(B11:B41)=0,"",SUM(B11:B41)) -> 3100 | C42: =IF(SUM(C11:C41)=0,"",SUM(C11:C41)) -> 400 | D42: =IF(SUM(D11:D41)=0,"",SUM(D11:D41)) ->  | L42: =IF(SUM(L11:L41)=0,0,SUM(L11:L41)) -> 3500
A43: Ngân sách | B43: ='Ngan sach'!H22 -> 3000 | C43: ='Ngan sach'!H23 -> 400 | D43: ='Ngan sach'!H24 -> 0 | E43: ='Ngan sach'!H25 -> 0 | F43: ='Ngan sach'!H26 -> 0 | G43: ='Ngan sach'!H27 -> 0 | H43: ='Ngan sach'!H28 -> 0 | I43: ='Ngan sach'!H29 -> 0 | L43: =SUM(B43:K43) -> 3400
A44: Còn lại | B44: =B43-SUM(B11:B41) -> -100 | C44: =C43-SUM(C11:C41) -> 0 | D44: 0 | E44: 0 | F44: 0 | G44: 0 | H44: 0 | I44: 0 | J44: 0 | K44: 0 | L44: -100
A46: Cố định | D46: Trả nợ | G46: Bất thường | J46: Tiết kiệm & đầu tư | M46: Thu nhập thực tế
A47: =IF('Ngan sach'!$C$14=0," ",'Ngan sach'!$C$14) -> Thuê nhà | B47: 2500 | D47: =IF('Ngan sach'!$C$41=0," ",'Ngan sach'!$C$41) -> Vay Mua nhà | G47: =IF('Ngan sach'!$C$33=0," ",'Ngan sach'!$C$33) -> Đi lại + về quê | J47: =IF('Ngan sach'!$C$49=0," ",'Ngan sach'!$C$49) -> TK Ngân hàng | K47: 8500 | M47: =IF('Ngan sach'!$C$6=0," ",'Ngan sach'!$C$6) -> Lương & Thưởng | N47: 16725
A48: =IF('Ngan sach'!$C$15=0," ",'Ngan sach'!$C$15) -> Điện thoại | B48: 200 | D48: =IF('Ngan sach'!$C$42=0," ",'Ngan sach'!$C$42) -> Mua xe | G48: =IF('Ngan sach'!$C$34=0," ",'Ngan sach'!$C$34) -> Khám bệnh | J48: =IF('Ngan sach'!$C$50=0," ",'Ngan sach'!$C$50) -> Bảo hiểm | M48: =IF('Ngan sach'!$C$7=0," ",'Ngan sach'!$C$7) -> Ngoài giờ
A49: =IF('Ngan sach'!$C$16=0," ",'Ngan sach'!$C$16) -> Mạng internet | B49: 200 | D49: =IF('Ngan sach'!$C$43=0," ",'Ngan sach'!$C$43) -> Vay nợ cá nhân | G49: =IF('Ngan sach'!$C$35=0," ",'Ngan sach'!$C$35) -> Du lịch | J49: =IF('Ngan sach'!$C$51=0," ",'Ngan sach'!$C$51) -> Đầu tư | M49: =IF('Ngan sach'!$C$8=0," ",'Ngan sach'!$C$8) -> Lãi
A50: =IF('Ngan sach'!$C$17=0," ",'Ngan sach'!$C$17) -> Tiền học cho con | B50: 1655 | D50: =IF('Ngan sach'!$C$44=0," ",'Ngan sach'!$C$44) -> Thẻ tín dụng | G50: =IF('Ngan sach'!$C$36=0," ",'Ngan sach'!$C$36) -> Khác | M50: =IF('Ngan sach'!$C$9=0," ",'Ngan sach'!$C$8) -> 
A51: =IF('Ngan sach'!$C$18=0," ",'Ngan sach'!$C$18) ->  | D51: =IF('Ngan sach'!$C$45=0," ",'Ngan sach'!$C$45) ->  | G51: =IF('Ngan sach'!$C$37=0," ",'Ngan sach'!$C$37) ->  | M51: =IF('Ngan sach'!$C$9=0," ",'Ngan sach'!$C$8) -> 
A52: Tổng thực tế | B52: =SUM(B47:B51) -> 4555 | D52: Tổng thực tế | E52: =SUM(E47:E51) -> 0 | G52: Tổng thực tế | H52: =SUM(H47:H51) -> 0 | J52: Tổng thực tế | K52: =SUM(K47:K51) -> 8500 | M52: Tổng thực tế | N52: =SUM(N47:N50) -> 16725
A53: Ngân sách | B53: =+'Ngan sach'!H19 -> 4975 | D53: Ngân sách | E53: =+'Ngan sach'!H46 -> 0 | G53: Ngân sách | H53: =+'Ngan sach'!H38 -> 1700 | J53: Ngân sách | K53: =+'Ngan sach'!H53 -> 7425 | M53: Ngân sách | N53: =+'Ngan sach'!H11 -> 17500
A54: Chênh lệch | B54: =B53-B52 -> 420 | D54: Chênh lệch | E54: =E53-E52 -> 0 | G54: Chênh lệch | H54: =H53-H52 -> 1700 | J54: Chênh lệch | K54: =K53-K52 -> -1075 | M54: Chênh lệch | N54: =N53-N52 -> 775

Sheet T6
Q1: Thu nhập | R1: =+N52 -> 16725
Q2: Chi tiêu | R2: =+B52+E52+H52+K52+L42 -> 16455
Q4: Chênh lệch | R4: =+R1-R2 -> 270
B5: Thu nhập | C5: Chi T.xuyên | D5: Chi cố định | E5: Chi B.Thường | F5: Trả nợ | G5: T.kiệm & ĐT | H5: Còn lại | J5: =+IF(L44+H54>=0,"","CẢNH BÁO: CHI THƯỜNG XUYÊN + CHI BẤT THƯỜNG VƯỢT NGÂN SÁCH") -> 
A6: Ngân sách | B6: =+N53 -> 17500 | C6: =+L43 -> 3400 | D6: =+B53 -> 4975 | E6: =+H53 -> 1500 | F6: =+E53 -> 5000 | G6: =+K53 -> 2625 | H6: =+B6-SUM(C6:G6) -> 0
A7: Thực tế | B7: =+N52 -> 16725 | C7: =+L42 -> 3400 | D7: =+B52 -> 4555 | E7: =+H52 -> 0 | F7: =+E52 -> 7500 | G7: =+K52 -> 1000 | H7: =+B7-SUM(C7:G7) -> 270
A8: Chênh lêch | B8: =+B6-B7 -> 775 | C8: =+C6-C7 -> 0 | D8: 420 | E8: 1500 | F8: -2500 | G8: 1625 | P8: ĐVT: Nghìn đồng
A10: Tháng 06 | B10: =IF('Ngan sach'!C22=0, "", 'Ngan sach'!C22) -> Thức ăn | C10: =IF('Ngan sach'!C23=0, "", 'Ngan sach'!C23) -> Điện | D10: =IF('Ngan sach'!C24=0, "", 'Ngan sach'!C24) ->  | E10: =IF('Ngan sach'!C25=0, "", 'Ngan sach'!C25) ->  | F10: =IF('Ngan sach'!C26=0, "", 'Ngan sach'!C26) ->  | G10: =IF('Ngan sach'!C27=0, "", 'Ngan sach'!C27) ->  | H10: =IF('Ngan sach'!C28=0, "", 'Ngan sach'!C28) ->  | I10: =IF('Ngan sach'!C29=0, "", 'Ngan sach'!C29) ->  | L10: Tổng chi | M10: Còn lại | N10: Ghi chú
A11: 1 | B11: 100 | L11: =IF(SUM(B11:K11)=0,"",SUM(B11:K11)) -> 100 | M11: =L43-SUM(B11:K11) -> 3300
A12: 2 | B12: 100 | L12: =IF(SUM(B12:K12)=0," ",SUM(B12:K12)) -> 100 | M12: =M11-SUM(B12:K12) -> 3200
A13: 3 | B13: 100 | L13: 100 | M13: =M12-SUM(B13:K13) -> 3100
A14: 4 | B14: 100 | C14: 400 | L14: 500 | M14: 2600
A15: 5 | B15: 100 | L15: 100 | M15: 2500
A16: 6 | B16: 100 | L16: 100 | M16: 2400
A17: 7 | B17: 100 | L17: 100 | M17: 2300
A18: 8 | B18: 100 | L18: 100 | M18: 2200
A19: 9 | B19: 100 | L19: 100 | M19: 2100
A20: 10 | B20: 100 | L20: 100 | M20: 2000
A21: 11 | B21: 100 | L21: 100 | M21: 1900
A22: 12 | B22: 100 | L22: 100 | M22: 1800
A23: 13 | B23: 100 | L23: 100 | M23: 1700
A24: 14 | B24: 100 | L24: 100 | M24: 1600
A25: 15 | B25: 100 | L25: 100 | M25: 1500
A26: 16 | B26: 100 | L26: 100 | M26: 1400
A27: 17 | B27: 100 | L27: 100 | M27: 1300
A28: 18 | B28: 100 | L28: 100 | M28: 1200
A29: 19 | B29: 100 | L29: 100 | M29: 1100
A30: 20 | B30: 100 | L30: 100 | M30: 1000
A31: 21 | B31: 100 | L31: 100 | M31: 900
A32: 22 | B32: 100 | L32: 100 | M32: 800
A33: 23 | B33: 100 | L33: 100 | M33: 700
A34: 24 | B34: 100 | L34: 100 | M34: 600
A35: 25 | B35: 100 | L35: 100 | M35: 500
A36: 26 | B36: 100 | L36: 100 | M36: 400
A37: 27 | B37: 100 | L37: 100 | M37: 300
A38: 28 | B38: 100 | L38: 100 | M38: 200
A39: 29 | B39: 100 | L39: 100 | M39: 100
A40: 30 | B40: 100 | L40: 100 | M40: 0
M41: 0
A42: Đã chi | B42: =IF(SUM(B11:B41)=0,"",SUM(B11:B41)) -> 3000 | C42: =IF(SUM(C11:C41)=0,"",SUM(C11:C41)) -> 400 | D42: =IF(SUM(D11:D41)=0,"",SUM(D11:D41)) ->  | L42: =IF(SUM(L11:L41)=0,0,SUM(L11:L41)) -> 3400
A43: Ngân sách | B43: ='Ngan sach'!I22 -> 3000 | C43: ='Ngan sach'!I23 -> 400 | D43: ='Ngan sach'!I24 -> 0 | E43: ='Ngan sach'!I25 -> 0 | F43: ='Ngan sach'!I26 -> 0 | G43: ='Ngan sach'!I27 -> 0 | H43: ='Ngan sach'!I28 -> 0 | I43: ='Ngan sach'!I29 -> 0 | L43: =SUM(B43:K43) -> 3400
A44: Còn lại | B44: =B43-SUM(B11:B41) -> 0 | C44: =C43-SUM(C11:C41) -> 0 | D44: 0 | E44: 0 | F44: 0 | G44: 0 | H44: 0 | I44: 0 | J44: 0 | K44: 0 | L44: 0
A46: Cố định | D46: Trả nợ | G46: Bất thường | J46: Tiết kiệm & đầu tư | M46: Thu nhập thực tế
A47: =IF('Ngan sach'!$C$14=0," ",'Ngan sach'!$C$14) -> Thuê nhà | B47: 2500 | D47: =IF('Ngan sach'!$C$41=0," ",'Ngan sach'!$C$41) -> Vay Mua nhà | E47: 5500 | G47: =IF('Ngan sach'!$C$33=0," ",'Ngan sach'!$C$33) -> Đi lại + về quê | J47: =IF('Ngan sach'!$C$49=0," ",'Ngan sach'!$C$49) -> TK Ngân hàng | K47: 1000 | M47: =IF('Ngan sach'!$C$6=0," ",'Ngan sach'!$C$6) -> Lương & Thưởng | N47: 16725
A48: =IF('Ngan sach'!$C$15=0," ",'Ngan sach'!$C$15) -> Điện thoại | B48: 200 | D48: =IF('Ngan sach'!$C$42=0," ",'Ngan sach'!$C$42) -> Mua xe | G48: =IF('Ngan sach'!$C$34=0," ",'Ngan sach'!$C$34) -> Khám bệnh | J48: =IF('Ngan sach'!$C$50=0," ",'Ngan sach'!$C$50) -> Bảo hiểm | M48: =IF('Ngan sach'!$C$7=0," ",'Ngan sach'!$C$7) -> Ngoài giờ
A49: =IF('Ngan sach'!$C$16=0," ",'Ngan sach'!$C$16) -> Mạng internet | B49: 200 | D49: =IF('Ngan sach'!$C$43=0," ",'Ngan sach'!$C$43) -> Vay nợ cá nhân | E49: 2000 | G49: =IF('Ngan sach'!$C$35=0," ",'Ngan sach'!$C$35) -> Du lịch | J49: =IF('Ngan sach'!$C$51=0," ",'Ngan sach'!$C$51) -> Đầu tư | M49: =IF('Ngan sach'!$C$8=0," ",'Ngan sach'!$C$8) -> Lãi
A50: =IF('Ngan sach'!$C$17=0," ",'Ngan sach'!$C$17) -> Tiền học cho con | B50: 1655 | D50: =IF('Ngan sach'!$C$44=0," ",'Ngan sach'!$C$44) -> Thẻ tín dụng | G50: =IF('Ngan sach'!$C$36=0," ",'Ngan sach'!$C$36) -> Khác | M50: =IF('Ngan sach'!$C$9=0," ",'Ngan sach'!$C$8) -> 
A51: =IF('Ngan sach'!$C$18=0," ",'Ngan sach'!$C$18) ->  | D51: =IF('Ngan sach'!$C$45=0," ",'Ngan sach'!$C$45) ->  | G51: =IF('Ngan sach'!$C$37=0," ",'Ngan sach'!$C$37) ->  | M51: =IF('Ngan sach'!$C$9=0," ",'Ngan sach'!$C$8) -> 
A52: Tổng thực tế | B52: =SUM(B47:B51) -> 4555 | D52: Tổng thực tế | E52: =SUM(E47:E51) -> 7500 | G52: Tổng thực tế | H52: =SUM(H47:H51) -> 0 | J52: Tổng thực tế | K52: =SUM(K47:K51) -> 1000 | M52: Tổng thực tế | N52: =SUM(N47:N50) -> 16725
A53: Ngân sách | B53: =+'Ngan sach'!I19 -> 4975 | D53: Ngân sách | E53: =+'Ngan sach'!I46 -> 5000 | G53: Ngân sách | H53: =+'Ngan sach'!I38 -> 1500 | J53: Ngân sách | K53: =+'Ngan sach'!I53 -> 2625 | M53: Ngân sách | N53: =+'Ngan sach'!I11 -> 17500
A54: Chênh lệch | B54: =B53-B52 -> 420 | D54: Chênh lệch | E54: =E53-E52 -> -2500 | G54: Chênh lệch | H54: =H53-H52 -> 1500 | J54: Chênh lệch | K54: =K53-K52 -> 1625 | M54: Chênh lệch | N54: =N53-N52 -> 775

Sheet T7
Q1: Thu nhập | R1: =+N52 -> 22000
Q2: Chi tiêu | R2: =+B52+E52+H52+K52+L42 -> 22005
Q4: Chênh lệch | R4: =+R1-R2 -> -5
B5: Thu nhập | C5: Chi T.xuyên | D5: Chi cố định | E5: Chi B.Thường | F5: Trả nợ | G5: T.kiệm & ĐT | H5: Còn lại | J5: =+IF(L44+H54>=0,"","CẢNH BÁO: CHI THƯỜNG XUYÊN + CHI BẤT THƯỜNG VƯỢT NGÂN SÁCH") -> 
A6: Ngân sách | B6: =+N53 -> 21500 | C6: =+L43 -> 3400 | D6: =+B53 -> 4975 | E6: =+H53 -> 1500 | F6: =+E53 -> 5000 | G6: =+K53 -> 2625 | H6: =+B6-SUM(C6:G6) -> 4000
A7: Thực tế | B7: =+N52 -> 22000 | C7: =+L42 -> 3500 | D7: =+B52 -> 4555 | E7: =+H52 -> 1000 | F7: =+E52 -> 7450 | G7: =+K52 -> 5500 | H7: =+B7-SUM(C7:G7) -> -5
A8: Chênh lêch | B8: =+B6-B7 -> -500 | C8: =+C6-C7 -> -100 | D8: 420 | E8: 500 | F8: -2450 | G8: -2875 | P8: ĐVT: Nghìn đồng
A10: Tháng 07 | B10: =IF('Ngan sach'!C22=0, "", 'Ngan sach'!C22) -> Thức ăn | C10: =IF('Ngan sach'!C23=0, "", 'Ngan sach'!C23) -> Điện | D10: =IF('Ngan sach'!C24=0, "", 'Ngan sach'!C24) ->  | E10: =IF('Ngan sach'!C25=0, "", 'Ngan sach'!C25) ->  | F10: =IF('Ngan sach'!C26=0, "", 'Ngan sach'!C26) ->  | G10: =IF('Ngan sach'!C27=0, "", 'Ngan sach'!C27) ->  | H10: =IF('Ngan sach'!C28=0, "", 'Ngan sach'!C28) ->  | I10: =IF('Ngan sach'!C29=0, "", 'Ngan sach'!C29) ->  | L10: Tổng chi | M10: Còn lại | N10: Ghi chú
A11: 1 | B11: 100 | L11: =IF(SUM(B11:K11)=0,"",SUM(B11:K11)) -> 100 | M11: =L43-SUM(B11:K11) -> 3300
A12: 2 | B12: 100 | L12: =IF(SUM(B12:K12)=0," ",SUM(B12:K12)) -> 100 | M12: =M11-SUM(B12:K12) -> 3200
A13: 3 | B13: 100 | L13: 100 | M13: =M12-SUM(B13:K13) -> 3100
A14: 4 | B14: 100 | C14: 400 | L14: 500 | M14: 2600
A15: 5 | B15: 100 | L15: 100 | M15: 2500
A16: 6 | B16: 100 | L16: 100 | M16: 2400
A17: 7 | B17: 100 | L17: 100 | M17: 2300
A18: 8 | B18: 100 | L18: 100 | M18: 2200
A19: 9 | B19: 100 | L19: 100 | M19: 2100
A20: 10 | B20: 100 | L20: 100 | M20: 2000
A21: 11 | B21: 100 | L21: 100 | M21: 1900
A22: 12 | B22: 100 | L22: 100 | M22: 1800
A23: 13 | B23: 100 | L23: 100 | M23: 1700
A24: 14 | B24: 100 | L24: 100 | M24: 1600
A25: 15 | B25: 100 | L25: 100 | M25: 1500
A26: 16 | B26: 100 | L26: 100 | M26: 1400
A27: 17 | B27: 100 | L27: 100 | M27: 1300
A28: 18 | B28: 100 | L28: 100 | M28: 1200
A29: 19 | B29: 100 | L29: 100 | M29: 1100
A30: 20 | B30: 100 | L30: 100 | M30: 1000
A31: 21 | B31: 100 | L31: 100 | M31: 900
A32: 22 | B32: 100 | L32: 100 | M32: 800
A33: 23 | B33: 100 | L33: 100 | M33: 700
A34: 24 | B34: 100 | L34: 100 | M34: 600
A35: 25 | B35: 100 | L35: 100 | M35: 500
A36: 26 | B36: 100 | L36: 100 | M36: 400
A37: 27 | B37: 100 | L37: 100 | M37: 300
A38: 28 | B38: 100 | L38: 100 | M38: 200
A39: 29 | B39: 100 | L39: 100 | M39: 100
A40: 30 | B40: 100 | L40: 100 | M40: 0
A41: 31 | B41: 100 | L41: 100 | M41: -100
A42: Đã chi | B42: =IF(SUM(B11:B41)=0,"",SUM(B11:B41)) -> 3100 | C42: =IF(SUM(C11:C41)=0,"",SUM(C11:C41)) -> 400 | D42: =IF(SUM(D11:D41)=0,"",SUM(D11:D41)) ->  | L42: =IF(SUM(L11:L41)=0,0,SUM(L11:L41)) -> 3500
A43: Ngân sách | B43: ='Ngan sach'!J22 -> 3000 | C43: ='Ngan sach'!J23 -> 400 | D43: ='Ngan sach'!J24 -> 0 | E43: ='Ngan sach'!J25 -> 0 | F43: ='Ngan sach'!J26 -> 0 | G43: ='Ngan sach'!J27 -> 0 | H43: ='Ngan sach'!J28 -> 0 | I43: ='Ngan sach'!J29 -> 0 | L43: =SUM(B43:K43) -> 3400
A44: Còn lại | B44: =B43-SUM(B11:B41) -> -100 | C44: =C43-SUM(C11:C41) -> 0 | D44: 0 | E44: 0 | F44: 0 | G44: 0 | H44: 0 | I44: 0 | J44: 0 | K44: 0 | L44: -100
A46: Cố định | D46: Trả nợ | G46: Bất thường | J46: Tiết kiệm & đầu tư | M46: Thu nhập thực tế
A47: =IF('Ngan sach'!$C$14=0," ",'Ngan sach'!$C$14) -> Thuê nhà | B47: 2500 | D47: =IF('Ngan sach'!$C$41=0," ",'Ngan sach'!$C$41) -> Vay Mua nhà | E47: 5450 | G47: =IF('Ngan sach'!$C$33=0," ",'Ngan sach'!$C$33) -> Đi lại + về quê | J47: =IF('Ngan sach'!$C$49=0," ",'Ngan sach'!$C$49) -> TK Ngân hàng | K47: 5500 | M47: =IF('Ngan sach'!$C$6=0," ",'Ngan sach'!$C$6) -> Lương & Thưởng | N47: 15000
A48: =IF('Ngan sach'!$C$15=0," ",'Ngan sach'!$C$15) -> Điện thoại | B48: 200 | D48: =IF('Ngan sach'!$C$42=0," ",'Ngan sach'!$C$42) -> Mua xe | G48: =IF('Ngan sach'!$C$34=0," ",'Ngan sach'!$C$34) -> Khám bệnh | H48: 1000 | J48: =IF('Ngan sach'!$C$50=0," ",'Ngan sach'!$C$50) -> Bảo hiểm | M48: =IF('Ngan sach'!$C$7=0," ",'Ngan sach'!$C$7) -> Ngoài giờ | N48: 7000
A49: =IF('Ngan sach'!$C$16=0," ",'Ngan sach'!$C$16) -> Mạng internet | B49: 200 | D49: =IF('Ngan sach'!$C$43=0," ",'Ngan sach'!$C$43) -> Vay nợ cá nhân | E49: 2000 | G49: =IF('Ngan sach'!$C$35=0," ",'Ngan sach'!$C$35) -> Du lịch | J49: =IF('Ngan sach'!$C$51=0," ",'Ngan sach'!$C$51) -> Đầu tư | M49: =IF('Ngan sach'!$C$8=0," ",'Ngan sach'!$C$8) -> Lãi
A50: =IF('Ngan sach'!$C$17=0," ",'Ngan sach'!$C$17) -> Tiền học cho con | B50: 1655 | D50: =IF('Ngan sach'!$C$44=0," ",'Ngan sach'!$C$44) -> Thẻ tín dụng | G50: =IF('Ngan sach'!$C$36=0," ",'Ngan sach'!$C$36) -> Khác | M50: =IF('Ngan sach'!$C$9=0," ",'Ngan sach'!$C$8) -> 
A51: =IF('Ngan sach'!$C$18=0," ",'Ngan sach'!$C$18) ->  | D51: =IF('Ngan sach'!$C$45=0," ",'Ngan sach'!$C$45) ->  | G51: =IF('Ngan sach'!$C$37=0," ",'Ngan sach'!$C$37) ->  | M51: =IF('Ngan sach'!$C$9=0," ",'Ngan sach'!$C$8) -> 
A52: Tổng thực tế | B52: =SUM(B47:B51) -> 4555 | D52: Tổng thực tế | E52: =SUM(E47:E51) -> 7450 | G52: Tổng thực tế | H52: =SUM(H47:H51) -> 1000 | J52: Tổng thực tế | K52: =SUM(K47:K51) -> 5500 | M52: Tổng thực tế | N52: =SUM(N47:N50) -> 22000
A53: Ngân sách | B53: =+'Ngan sach'!J19 -> 4975 | D53: Ngân sách | E53: =+'Ngan sach'!J46 -> 5000 | G53: Ngân sách | H53: =+'Ngan sach'!J38 -> 1500 | J53: Ngân sách | K53: =+'Ngan sach'!J53 -> 2625 | M53: Ngân sách | N53: =+'Ngan sach'!J11 -> 21500
A54: Chênh lệch | B54: =B53-B52 -> 420 | D54: Chênh lệch | E54: =E53-E52 -> -2450 | G54: Chênh lệch | H54: =H53-H52 -> 500 | J54: Chênh lệch | K54: =K53-K52 -> -2875 | M54: Chênh lệch | N54: =N53-N52 -> -500

Sheet T8
Q1: Thu nhập | R1: =+N52 -> 21000
Q2: Chi tiêu | R2: =+B52+E52+H52+K52+L42 -> 20955
Q4: Chênh lệch | R4: =+R1-R2 -> 45
B5: Thu nhập | C5: Chi T.xuyên | D5: Chi cố định | E5: Chi B.Thường | F5: Trả nợ | G5: T.kiệm & ĐT | H5: Còn lại | J5: =+IF(L44+H54>=0,"","CẢNH BÁO: CHI THƯỜNG XUYÊN + CHI BẤT THƯỜNG VƯỢT NGÂN SÁCH") -> CẢNH BÁO: CHI THƯỜNG XUYÊN + CHI BẤT THƯỜNG VƯỢT NGÂN SÁCH
A6: Ngân sách | B6: =+N53 -> 17500 | C6: =+L43 -> 3400 | D6: =+B53 -> 4975 | E6: =+H53 -> 1500 | F6: =+E53 -> 5000 | G6: =+K53 -> 2625 | H6: =+B6-SUM(C6:G6) -> 0
A7: Thực tế | B7: =+N52 -> 21000 | C7: =+L42 -> 3500 | D7: =+B52 -> 4555 | E7: =+H52 -> 1500 | F7: =+E52 -> 7400 | G7: =+K52 -> 4000 | H7: =+B7-SUM(C7:G7) -> 45
A8: Chênh lêch | B8: =+B6-B7 -> -3500 | C8: =+C6-C7 -> -100 | D8: 420 | E8: 0 | F8: -2400 | G8: -1375 | P8: ĐVT: Nghìn đồng
A10: Tháng 08 | B10: =IF('Ngan sach'!C22=0, "", 'Ngan sach'!C22) -> Thức ăn | C10: =IF('Ngan sach'!C23=0, "", 'Ngan sach'!C23) -> Điện | D10: =IF('Ngan sach'!C24=0, "", 'Ngan sach'!C24) ->  | E10: =IF('Ngan sach'!C25=0, "", 'Ngan sach'!C25) ->  | F10: =IF('Ngan sach'!C26=0, "", 'Ngan sach'!C26) ->  | G10: =IF('Ngan sach'!C27=0, "", 'Ngan sach'!C27) ->  | H10: =IF('Ngan sach'!C28=0, "", 'Ngan sach'!C28) ->  | I10: =IF('Ngan sach'!C29=0, "", 'Ngan sach'!C29) ->  | L10: Tổng chi | M10: Còn lại | N10: Ghi chú
A11: 1 | B11: 100 | L11: =IF(SUM(B11:K11)=0,"",SUM(B11:K11)) -> 100 | M11: =L43-SUM(B11:K11) -> 3300
A12: 2 | B12: 100 | L12: =IF(SUM(B12:K12)=0," ",SUM(B12:K12)) -> 100 | M12: =M11-SUM(B12:K12) -> 3200
A13: 3 | B13: 100 | L13: 100 | M13: =M12-SUM(B13:K13) -> 3100
A14: 4 | B14: 100 | C14: 400 | L14: 500 | M14: 2600
A15: 5 | B15: 100 | L15: 100 | M15: 2500
A16: 6 | B16: 100 | L16: 100 | M16: 2400
A17: 7 | B17: 100 | L17: 100 | M17: 2300
A18: 8 | B18: 100 | L18: 100 | M18: 2200
A19: 9 | B19: 100 | L19: 100 | M19: 2100
A20: 10 | B20: 100 | L20: 100 | M20: 2000
A21: 11 | B21: 100 | L21: 100 | M21: 1900
A22: 12 | B22: 100 | L22: 100 | M22: 1800
A23: 13 | B23: 100 | L23: 100 | M23: 1700
A24: 14 | B24: 100 | L24: 100 | M24: 1600
A25: 15 | B25: 100 | L25: 100 | M25: 1500
A26: 16 | B26: 100 | L26: 100 | M26: 1400
A27: 17 | B27: 100 | L27: 100 | M27: 1300
A28: 18 | B28: 100 | L28: 100 | M28: 1200
A29: 19 | B29: 100 | L29: 100 | M29: 1100
A30: 20 | B30: 100 | L30: 100 | M30: 1000
A31: 21 | B31: 100 | L31: 100 | M31: 900
A32: 22 | B32: 100 | L32: 100 | M32: 800
A33: 23 | B33: 100 | L33: 100 | M33: 700
A34: 24 | B34: 100 | L34: 100 | M34: 600
A35: 25 | B35: 100 | L35: 100 | M35: 500
A36: 26 | B36: 100 | L36: 100 | M36: 400
A37: 27 | B37: 100 | L37: 100 | M37: 300
A38: 28 | B38: 100 | L38: 100 | M38: 200
A39: 29 | B39: 100 | L39: 100 | M39: 100
A40: 30 | B40: 100 | L40: 100 | M40: 0
A41: 31 | B41: 100 | L41: 100 | M41: -100
A42: Đã chi | B42: =IF(SUM(B11:B41)=0,"",SUM(B11:B41)) -> 3100 | C42: =IF(SUM(C11:C41)=0,"",SUM(C11:C41)) -> 400 | D42: =IF(SUM(D11:D41)=0,"",SUM(D11:D41)) ->  | L42: =IF(SUM(L11:L41)=0,0,SUM(L11:L41)) -> 3500
A43: Ngân sách | B43: ='Ngan sach'!K22 -> 3000 | C43: ='Ngan sach'!K23 -> 400 | D43: ='Ngan sach'!K24 -> 0 | E43: ='Ngan sach'!K25 -> 0 | F43: ='Ngan sach'!K26 -> 0 | G43: ='Ngan sach'!K27 -> 0 | H43: ='Ngan sach'!K28 -> 0 | I43: ='Ngan sach'!K29 -> 0 | L43: =SUM(B43:K43) -> 3400
A44: Còn lại | B44: =B43-SUM(B11:B41) -> -100 | C44: =C43-SUM(C11:C41) -> 0 | D44: 0 | E44: 0 | F44: 0 | G44: 0 | H44: 0 | I44: 0 | J44: 0 | K44: 0 | L44: -100
A46: Cố định | D46: Trả nợ | G46: Bất thường | J46: Tiết kiệm & đầu tư | M46: Thu nhập thực tế
A47: =IF('Ngan sach'!$C$14=0," ",'Ngan sach'!$C$14) -> Thuê nhà | B47: 2500 | D47: =IF('Ngan sach'!$C$41=0," ",'Ngan sach'!$C$41) -> Vay Mua nhà | E47: 5400 | G47: =IF('Ngan sach'!$C$33=0," ",'Ngan sach'!$C$33) -> Đi lại + về quê | H47: 1500 | J47: =IF('Ngan sach'!$C$49=0," ",'Ngan sach'!$C$49) -> TK Ngân hàng | K47: 4000 | M47: =IF('Ngan sach'!$C$6=0," ",'Ngan sach'!$C$6) -> Lương & Thưởng | N47: 16000
A48: =IF('Ngan sach'!$C$15=0," ",'Ngan sach'!$C$15) -> Điện thoại | B48: 200 | D48: =IF('Ngan sach'!$C$42=0," ",'Ngan sach'!$C$42) -> Mua xe | G48: =IF('Ngan sach'!$C$34=0," ",'Ngan sach'!$C$34) -> Khám bệnh | J48: =IF('Ngan sach'!$C$50=0," ",'Ngan sach'!$C$50) -> Bảo hiểm | M48: =IF('Ngan sach'!$C$7=0," ",'Ngan sach'!$C$7) -> Ngoài giờ | N48: 5000
A49: =IF('Ngan sach'!$C$16=0," ",'Ngan sach'!$C$16) -> Mạng internet | B49: 200 | D49: =IF('Ngan sach'!$C$43=0," ",'Ngan sach'!$C$43) -> Vay nợ cá nhân | E49: 2000 | G49: =IF('Ngan sach'!$C$35=0," ",'Ngan sach'!$C$35) -> Du lịch | J49: =IF('Ngan sach'!$C$51=0," ",'Ngan sach'!$C$51) -> Đầu tư | M49: =IF('Ngan sach'!$C$8=0," ",'Ngan sach'!$C$8) -> Lãi
A50: =IF('Ngan sach'!$C$17=0," ",'Ngan sach'!$C$17) -> Tiền học cho con | B50: 1655 | D50: =IF('Ngan sach'!$C$44=0," ",'Ngan sach'!$C$44) -> Thẻ tín dụng | G50: =IF('Ngan sach'!$C$36=0," ",'Ngan sach'!$C$36) -> Khác | M50: =IF('Ngan sach'!$C$9=0," ",'Ngan sach'!$C$8) -> 
A51: =IF('Ngan sach'!$C$18=0," ",'Ngan sach'!$C$18) ->  | D51: =IF('Ngan sach'!$C$45=0," ",'Ngan sach'!$C$45) ->  | G51: =IF('Ngan sach'!$C$37=0," ",'Ngan sach'!$C$37) ->  | M51: =IF('Ngan sach'!$C$9=0," ",'Ngan sach'!$C$8) -> 
A52: Tổng thực tế | B52: =SUM(B47:B51) -> 4555 | D52: Tổng thực tế | E52: =SUM(E47:E51) -> 7400 | G52: Tổng thực tế | H52: =SUM(H47:H51) -> 1500 | J52: Tổng thực tế | K52: =SUM(K47:K51) -> 4000 | M52: Tổng thực tế | N52: =SUM(N47:N50) -> 21000
A53: Ngân sách | B53: =+'Ngan sach'!K19 -> 4975 | D53: Ngân sách | E53: =+'Ngan sach'!K46 -> 5000 | G53: Ngân sách | H53: =+'Ngan sach'!K38 -> 1500 | J53: Ngân sách | K53: =+'Ngan sach'!K53 -> 2625 | M53: Ngân sách | N53: =+'Ngan sach'!K11 -> 17500
A54: Chênh lệch | B54: =B53-B52 -> 420 | D54: Chênh lệch | E54: =E53-E52 -> -2400 | G54: Chênh lệch | H54: =H53-H52 -> 0 | J54: Chênh lệch | K54: =K53-K52 -> -1375 | M54: Chênh lệch | N54: =N53-N52 -> -3500

Sheet T9
Q1: Thu nhập | R1: =+N52 -> 18725
Q2: Chi tiêu | R2: =+B52+E52+H52+K52+L42 -> 18805
Q4: Chênh lệch | R4: =+R1-R2 -> -80
B5: Thu nhập | C5: Chi T.xuyên | D5: Chi cố định | E5: Chi B.Thường | F5: Trả nợ | G5: T.kiệm & ĐT | H5: Còn lại | J5: =+IF(L44+H54>=0,"","CẢNH BÁO: CHI THƯỜNG XUYÊN + CHI BẤT THƯỜNG VƯỢT NGÂN SÁCH") -> 
A6: Ngân sách | B6: =+N53 -> 17500 | C6: =+L43 -> 3400 | D6: =+B53 -> 4975 | E6: =+H53 -> 1500 | F6: =+E53 -> 5000 | G6: =+K53 -> 2625 | H6: =+B6-SUM(C6:G6) -> 0
A7: Thực tế | B7: =+N52 -> 18725 | C7: =+L42 -> 3400 | D7: =+B52 -> 4555 | E7: =+H52 -> 0 | F7: =+E52 -> 7350 | G7: =+K52 -> 3500 | H7: =+B7-SUM(C7:G7) -> -80
A8: Chênh lêch | B8: =+B6-B7 -> -1225 | C8: =+C6-C7 -> 0 | D8: 420 | E8: 1500 | F8: -2350 | G8: -875 | P8: ĐVT: Nghìn đồng
A10: Tháng 09 | B10: =IF('Ngan sach'!C22=0, "", 'Ngan sach'!C22) -> Thức ăn | C10: =IF('Ngan sach'!C23=0, "", 'Ngan sach'!C23) -> Điện | D10: =IF('Ngan sach'!C24=0, "", 'Ngan sach'!C24) ->  | E10: =IF('Ngan sach'!C25=0, "", 'Ngan sach'!C25) ->  | F10: =IF('Ngan sach'!C26=0, "", 'Ngan sach'!C26) ->  | G10: =IF('Ngan sach'!C27=0, "", 'Ngan sach'!C27) ->  | H10: =IF('Ngan sach'!C28=0, "", 'Ngan sach'!C28) ->  | I10: =IF('Ngan sach'!C29=0, "", 'Ngan sach'!C29) ->  | L10: Tổng chi | M10: Còn lại | N10: Ghi chú
A11: 1 | B11: 100 | L11: =IF(SUM(B11:K11)=0,"",SUM(B11:K11)) -> 100 | M11: =L43-SUM(B11:K11) -> 3300
A12: 2 | B12: 100 | L12: =IF(SUM(B12:K12)=0," ",SUM(B12:K12)) -> 100 | M12: =M11-SUM(B12:K12) -> 3200
A13: 3 | B13: 100 | L13: 100 | M13: =M12-SUM(B13:K13) -> 3100
A14: 4 | B14: 100 | C14: 400 | L14: 500 | M14: 2600
A15: 5 | B15: 100 | L15: 100 | M15: 2500
A16: 6 | B16: 100 | L16: 100 | M16: 2400
A17: 7 | B17: 100 | L17: 100 | M17: 2300
A18: 8 | B18: 100 | L18: 100 | M18: 2200
A19: 9 | B19: 100 | L19: 100 | M19: 2100
A20: 10 | B20: 100 | L20: 100 | M20: 2000
A21: 11 | B21: 100 | L21: 100 | M21: 1900
A22: 12 | B22: 100 | L22: 100 | M22: 1800
A23: 13 | B23: 100 | L23: 100 | M23: 1700
A24: 14 | B24: 100 | L24: 100 | M24: 1600
A25: 15 | B25: 100 | L25: 100 | M25: 1500
A26: 16 | B26: 100 | L26: 100 | M26: 1400
A27: 17 | B27: 100 | L27: 100 | M27: 1300
A28: 18 | B28: 100 | L28: 100 | M28: 1200
A29: 19 | B29: 100 | L29: 100 | M29: 1100
A30: 20 | B30: 100 | L30: 100 | M30: 1000
A31: 21 | B31: 100 | L31: 100 | M31: 900
A32: 22 | B32: 100 | L32: 100 | M32: 800
A33: 23 | B33: 100 | L33: 100 | M33: 700
A34: 24 | B34: 100 | L34: 100 | M34: 600
A35: 25 | B35: 100 | L35: 100 | M35: 500
A36: 26 | B36: 100 | L36: 100 | M36: 400
A37: 27 | B37: 100 | L37: 100 | M37: 300
A38: 28 | B38: 100 | L38: 100 | M38: 200
A39: 29 | B39: 100 | L39: 100 | M39: 100
A40: 30 | B40: 100 | L40: 100 | M40: 0
M41: 0
A42: Đã chi | B42: =IF(SUM(B11:B41)=0,"",SUM(B11:B41)) -> 3000 | C42: =IF(SUM(C11:C41)=0,"",SUM(C11:C41)) -> 400 | D42: =IF(SUM(D11:D41)=0,"",SUM(D11:D41)) ->  | L42: =IF(SUM(L11:L41)=0,0,SUM(L11:L41)) -> 3400
A43: Ngân sách | B43: ='Ngan sach'!L22 -> 3000 | C43: ='Ngan sach'!L23 -> 400 | D43: ='Ngan sach'!L24 -> 0 | E43: ='Ngan sach'!L25 -> 0 | F43: ='Ngan sach'!L26 -> 0 | G43: ='Ngan sach'!L27 -> 0 | H43: ='Ngan sach'!L28 -> 0 | I43: ='Ngan sach'!L29 -> 0 | L43: =SUM(B43:K43) -> 3400
A44: Còn lại | B44: =B43-SUM(B11:B41) -> 0 | C44: =C43-SUM(C11:C41) -> 0 | D44: 0 | E44: 0 | F44: 0 | G44: 0 | H44: 0 | I44: 0 | J44: 0 | K44: 0 | L44: 0
A46: Cố định | D46: Trả nợ | G46: Bất thường | J46: Tiết kiệm & đầu tư | M46: Thu nhập thực tế
A47: =IF('Ngan sach'!$C$14=0," ",'Ngan sach'!$C$14) -> Thuê nhà | B47: 2500 | D47: =IF('Ngan sach'!$C$41=0," ",'Ngan sach'!$C$41) -> Vay Mua nhà | E47: 5350 | G47: =IF('Ngan sach'!$C$33=0," ",'Ngan sach'!$C$33) -> Đi lại + về quê | J47: =IF('Ngan sach'!$C$49=0," ",'Ngan sach'!$C$49) -> TK Ngân hàng | K47: 3500 | M47: =IF('Ngan sach'!$C$6=0," ",'Ngan sach'!$C$6) -> Lương & Thưởng | N47: 16725
A48: =IF('Ngan sach'!$C$15=0," ",'Ngan sach'!$C$15) -> Điện thoại | B48: 200 | D48: =IF('Ngan sach'!$C$42=0," ",'Ngan sach'!$C$42) -> Mua xe | G48: =IF('Ngan sach'!$C$34=0," ",'Ngan sach'!$C$34) -> Khám bệnh | J48: =IF('Ngan sach'!$C$50=0," ",'Ngan sach'!$C$50) -> Bảo hiểm | M48: =IF('Ngan sach'!$C$7=0," ",'Ngan sach'!$C$7) -> Ngoài giờ | N48: 2000
A49: =IF('Ngan sach'!$C$16=0," ",'Ngan sach'!$C$16) -> Mạng internet | B49: 200 | D49: =IF('Ngan sach'!$C$43=0," ",'Ngan sach'!$C$43) -> Vay nợ cá nhân | E49: 2000 | G49: =IF('Ngan sach'!$C$35=0," ",'Ngan sach'!$C$35) -> Du lịch | J49: =IF('Ngan sach'!$C$51=0," ",'Ngan sach'!$C$51) -> Đầu tư | M49: =IF('Ngan sach'!$C$8=0," ",'Ngan sach'!$C$8) -> Lãi
A50: =IF('Ngan sach'!$C$17=0," ",'Ngan sach'!$C$17) -> Tiền học cho con | B50: 1655 | D50: =IF('Ngan sach'!$C$44=0," ",'Ngan sach'!$C$44) -> Thẻ tín dụng | G50: =IF('Ngan sach'!$C$36=0," ",'Ngan sach'!$C$36) -> Khác | M50: =IF('Ngan sach'!$C$9=0," ",'Ngan sach'!$C$8) -> 
A51: =IF('Ngan sach'!$C$18=0," ",'Ngan sach'!$C$18) ->  | D51: =IF('Ngan sach'!$C$45=0," ",'Ngan sach'!$C$45) ->  | G51: =IF('Ngan sach'!$C$37=0," ",'Ngan sach'!$C$37) ->  | M51: =IF('Ngan sach'!$C$9=0," ",'Ngan sach'!$C$8) -> 
A52: Tổng thực tế | B52: =SUM(B47:B51) -> 4555 | D52: Tổng thực tế | E52: =SUM(E47:E51) -> 7350 | G52: Tổng thực tế | H52: =SUM(H47:H51) -> 0 | J52: Tổng thực tế | K52: =SUM(K47:K51) -> 3500 | M52: Tổng thực tế | N52: =SUM(N47:N50) -> 18725
A53: Ngân sách | B53: =+'Ngan sach'!L19 -> 4975 | D53: Ngân sách | E53: =+'Ngan sach'!L46 -> 5000 | G53: Ngân sách | H53: =+'Ngan sach'!L38 -> 1500 | J53: Ngân sách | K53: =+'Ngan sach'!L53 -> 2625 | M53: Ngân sách | N53: =+'Ngan sach'!L11 -> 17500
A54: Chênh lệch | B54: =B53-B52 -> 420 | D54: Chênh lệch | E54: =E53-E52 -> -2350 | G54: Chênh lệch | H54: =H53-H52 -> 1500 | J54: Chênh lệch | K54: =K53-K52 -> -875 | M54: Chênh lệch | N54: =N53-N52 -> -1225

Sheet T10
Q1: Thu nhập | R1: =+N52 -> 16725
Q2: Chi tiêu | R2: =+B52+E52+H52+K52+L42 -> 16655
Q4: Chênh lệch | R4: =+R1-R2 -> 70
B5: Thu nhập | C5: Chi T.xuyên | D5: Chi cố định | E5: Chi B.Thường | F5: Trả nợ | G5: T.kiệm & ĐT | H5: Còn lại | J5: =+IF(L44+H54>=0,"","CẢNH BÁO: CHI THƯỜNG XUYÊN + CHI BẤT THƯỜNG VƯỢT NGÂN SÁCH") -> 
A6: Ngân sách | B6: =+N53 -> 17500 | C6: =+L43 -> 3300 | D6: =+B53 -> 4975 | E6: =+H53 -> 1500 | F6: =+E53 -> 5000 | G6: =+K53 -> 2725 | H6: =+B6-SUM(C6:G6) -> 0
A7: Thực tế | B7: =+N52 -> 16725 | C7: =+L42 -> 3500 | D7: =+B52 -> 4555 | E7: =+H52 -> 0 | F7: =+E52 -> 7300 | G7: =+K52 -> 1300 | H7: =+B7-SUM(C7:G7) -> 70
A8: Chênh lêch | B8: =+B6-B7 -> 775 | C8: =+C6-C7 -> -200 | D8: 420 | E8: 1500 | F8: -2300 | G8: 1425 | P8: ĐVT: Nghìn đồng
A10: Tháng 10 | B10: =IF('Ngan sach'!C22=0, "", 'Ngan sach'!C22) -> Thức ăn | C10: =IF('Ngan sach'!C23=0, "", 'Ngan sach'!C23) -> Điện | D10: =IF('Ngan sach'!C24=0, "", 'Ngan sach'!C24) ->  | E10: =IF('Ngan sach'!C25=0, "", 'Ngan sach'!C25) ->  | F10: =IF('Ngan sach'!C26=0, "", 'Ngan sach'!C26) ->  | G10: =IF('Ngan sach'!C27=0, "", 'Ngan sach'!C27) ->  | H10: =IF('Ngan sach'!C28=0, "", 'Ngan sach'!C28) ->  | I10: =IF('Ngan sach'!C29=0, "", 'Ngan sach'!C29) ->  | L10: Tổng chi | M10: Còn lại | N10: Ghi chú
A11: 1 | B11: 100 | L11: =IF(SUM(B11:K11)=0,"",SUM(B11:K11)) -> 100 | M11: =L43-SUM(B11:K11) -> 3200
A12: 2 | B12: 100 | L12: =IF(SUM(B12:K12)=0," ",SUM(B12:K12)) -> 100 | M12: =M11-SUM(B12:K12) -> 3100
A13: 3 | B13: 100 | L13: 100 | M13: =M12-SUM(B13:K13) -> 3000
A14: 4 | B14: 100 | C14: 400 | L14: 500 | M14: 2500
A15: 5 | B15: 100 | L15: 100 | M15: 2400
A16: 6 | B16: 100 | L16: 100 | M16: 2300
A17: 7 | B17: 100 | L17: 100 | M17: 2200
A18: 8 | B18: 100 | L18: 100 | M18: 2100
A19: 9 | B19: 100 | L19: 100 | M19: 2000
A20: 10 | B20: 100 | L20: 100 | M20: 1900
A21: 11 | B21: 100 | L21: 100 | M21: 1800
A22: 12 | B22: 100 | L22: 100 | M22: 1700
A23: 13 | B23: 100 | L23: 100 | M23: 1600
A24: 14 | B24: 100 | L24: 100 | M24: 1500
A25: 15 | B25: 100 | L25: 100 | M25: 1400
A26: 16 | B26: 100 | L26: 100 | M26: 1300
A27: 17 | B27: 100 | L27: 100 | M27: 1200
A28: 18 | B28: 100 | L28: 100 | M28: 1100
A29: 19 | B29: 100 | L29: 100 | M29: 1000
A30: 20 | B30: 100 | L30: 100 | M30: 900
A31: 21 | B31: 100 | L31: 100 | M31: 800
A32: 22 | B32: 100 | L32: 100 | M32: 700
A33: 23 | B33: 100 | L33: 100 | M33: 600
A34: 24 | B34: 100 | L34: 100 | M34: 500
A35: 25 | B35: 100 | L35: 100 | M35: 400
A36: 26 | B36: 100 | L36: 100 | M36: 300
A37: 27 | B37: 100 | L37: 100 | M37: 200
A38: 28 | B38: 100 | L38: 100 | M38: 100
A39: 29 | B39: 100 | L39: 100 | M39: 0
A40: 30 | B40: 100 | L40: 100 | M40: -100
A41: 31 | B41: 100 | L41: 100 | M41: -200
A42: Đã chi | B42: =IF(SUM(B11:B41)=0,"",SUM(B11:B41)) -> 3100 | C42: =IF(SUM(C11:C41)=0,"",SUM(C11:C41)) -> 400 | D42: =IF(SUM(D11:D41)=0,"",SUM(D11:D41)) ->  | L42: =IF(SUM(L11:L41)=0,0,SUM(L11:L41)) -> 3500
A43: Ngân sách | B43: ='Ngan sach'!M22 -> 3000 | C43: ='Ngan sach'!M23 -> 300 | D43: ='Ngan sach'!M24 -> 0 | E43: ='Ngan sach'!M25 -> 0 | F43: ='Ngan sach'!M26 -> 0 | G43: ='Ngan sach'!M27 -> 0 | H43: ='Ngan sach'!M28 -> 0 | I43: ='Ngan sach'!M29 -> 0 | L43: =SUM(B43:K43) -> 3300
A44: Còn lại | B44: =B43-SUM(B11:B41) -> -100 | C44: =C43-SUM(C11:C41) -> -100 | D44: 0 | E44: 0 | F44: 0 | G44: 0 | H44: 0 | I44: 0 | J44: 0 | K44: 0 | L44: -200
A46: Cố định | D46: Trả nợ | G46: Bất thường | J46: Tiết kiệm & đầu tư | M46: Thu nhập thực tế
A47: =IF('Ngan sach'!$C$14=0," ",'Ngan sach'!$C$14) -> Thuê nhà | B47: 2500 | D47: =IF('Ngan sach'!$C$41=0," ",'Ngan sach'!$C$41) -> Vay Mua nhà | E47: 5300 | G47: =IF('Ngan sach'!$C$33=0," ",'Ngan sach'!$C$33) -> Đi lại + về quê | J47: =IF('Ngan sach'!$C$49=0," ",'Ngan sach'!$C$49) -> TK Ngân hàng | K47: 1300 | M47: =IF('Ngan sach'!$C$6=0," ",'Ngan sach'!$C$6) -> Lương & Thưởng | N47: 16725
A48: =IF('Ngan sach'!$C$15=0," ",'Ngan sach'!$C$15) -> Điện thoại | B48: 200 | D48: =IF('Ngan sach'!$C$42=0," ",'Ngan sach'!$C$42) -> Mua xe | G48: =IF('Ngan sach'!$C$34=0," ",'Ngan sach'!$C$34) -> Khám bệnh | J48: =IF('Ngan sach'!$C$50=0," ",'Ngan sach'!$C$50) -> Bảo hiểm | M48: =IF('Ngan sach'!$C$7=0," ",'Ngan sach'!$C$7) -> Ngoài giờ
A49: =IF('Ngan sach'!$C$16=0," ",'Ngan sach'!$C$16) -> Mạng internet | B49: 200 | D49: =IF('Ngan sach'!$C$43=0," ",'Ngan sach'!$C$43) -> Vay nợ cá nhân | E49: 2000 | G49: =IF('Ngan sach'!$C$35=0," ",'Ngan sach'!$C$35) -> Du lịch | J49: =IF('Ngan sach'!$C$51=0," ",'Ngan sach'!$C$51) -> Đầu tư | M49: =IF('Ngan sach'!$C$8=0," ",'Ngan sach'!$C$8) -> Lãi
A50: =IF('Ngan sach'!$C$17=0," ",'Ngan sach'!$C$17) -> Tiền học cho con | B50: 1655 | D50: =IF('Ngan sach'!$C$44=0," ",'Ngan sach'!$C$44) -> Thẻ tín dụng | G50: =IF('Ngan sach'!$C$36=0," ",'Ngan sach'!$C$36) -> Khác | M50: =IF('Ngan sach'!$C$9=0," ",'Ngan sach'!$C$8) -> 
A51: =IF('Ngan sach'!$C$18=0," ",'Ngan sach'!$C$18) ->  | D51: =IF('Ngan sach'!$C$45=0," ",'Ngan sach'!$C$45) ->  | G51: =IF('Ngan sach'!$C$37=0," ",'Ngan sach'!$C$37) ->  | M51: =IF('Ngan sach'!$C$9=0," ",'Ngan sach'!$C$8) -> 
A52: Tổng thực tế | B52: =SUM(B47:B51) -> 4555 | D52: Tổng thực tế | E52: =SUM(E47:E51) -> 7300 | G52: Tổng thực tế | H52: =SUM(H47:H51) -> 0 | J52: Tổng thực tế | K52: =SUM(K47:K51) -> 1300 | M52: Tổng thực tế | N52: =SUM(N47:N50) -> 16725
A53: Ngân sách | B53: =+'Ngan sach'!M19 -> 4975 | D53: Ngân sách | E53: =+'Ngan sach'!M46 -> 5000 | G53: Ngân sách | H53: =+'Ngan sach'!M38 -> 1500 | J53: Ngân sách | K53: =+'Ngan sach'!M53 -> 2725 | M53: Ngân sách | N53: =+'Ngan sach'!M11 -> 17500
A54: Chênh lệch | B54: =B53-B52 -> 420 | D54: Chênh lệch | E54: =E53-E52 -> -2300 | G54: Chênh lệch | H54: =H53-H52 -> 1500 | J54: Chênh lệch | K54: =K53-K52 -> 1425 | M54: Chênh lệch | N54: =N53-N52 -> 775

Sheet T11
Q1: Thu nhập | R1: =+N52 -> 17725
Q2: Chi tiêu | R2: =+B52+E52+H52+K52+L42 -> 17575
Q4: Chênh lệch | R4: =+R1-R2 -> 150
B5: Thu nhập | C5: Chi T.xuyên | D5: Chi cố định | E5: Chi B.Thường | F5: Trả nợ | G5: T.kiệm & ĐT | H5: Còn lại | J5: =+IF(L44+H54>=0,"","CẢNH BÁO: CHI THƯỜNG XUYÊN + CHI BẤT THƯỜNG VƯỢT NGÂN SÁCH") -> 
A6: Ngân sách | B6: =+N53 -> 17500 | C6: =+L43 -> 3300 | D6: =+B53 -> 4975 | E6: =+H53 -> 1500 | F6: =+E53 -> 5000 | G6: =+K53 -> 2725 | H6: =+B6-SUM(C6:G6) -> 0
A7: Thực tế | B7: =+N52 -> 17725 | C7: =+L42 -> 3400 | D7: =+B52 -> 4555 | E7: =+H52 -> 300 | F7: =+E52 -> 7320 | G7: =+K52 -> 2000 | H7: =+B7-SUM(C7:G7) -> 150
A8: Chênh lêch | B8: =+B6-B7 -> -225 | C8: =+C6-C7 -> -100 | D8: 420 | E8: 1200 | F8: -2320 | G8: 725 | P8: ĐVT: Nghìn đồng
A10: Tháng 11 | B10: =IF('Ngan sach'!C22=0, "", 'Ngan sach'!C22) -> Thức ăn | C10: =IF('Ngan sach'!C23=0, "", 'Ngan sach'!C23) -> Điện | D10: =IF('Ngan sach'!C24=0, "", 'Ngan sach'!C24) ->  | E10: =IF('Ngan sach'!C25=0, "", 'Ngan sach'!C25) ->  | F10: =IF('Ngan sach'!C26=0, "", 'Ngan sach'!C26) ->  | G10: =IF('Ngan sach'!C27=0, "", 'Ngan sach'!C27) ->  | H10: =IF('Ngan sach'!C28=0, "", 'Ngan sach'!C28) ->  | I10: =IF('Ngan sach'!C29=0, "", 'Ngan sach'!C29) ->  | L10: Tổng chi | M10: Còn lại | N10: Ghi chú
A11: 1 | B11: 100 | L11: =IF(SUM(B11:K11)=0,"",SUM(B11:K11)) -> 100 | M11: =L43-SUM(B11:K11) -> 3200
A12: 2 | B12: 100 | L12: =IF(SUM(B12:K12)=0," ",SUM(B12:K12)) -> 100 | M12: =M11-SUM(B12:K12) -> 3100
A13: 3 | B13: 100 | L13: 100 | M13: =M12-SUM(B13:K13) -> 3000
A14: 4 | B14: 100 | C14: 400 | L14: 500 | M14: 2500
A15: 5 | B15: 100 | L15: 100 | M15: 2400
A16: 6 | B16: 100 | L16: 100 | M16: 2300
A17: 7 | B17: 100 | L17: 100 | M17: 2200
A18: 8 | B18: 100 | L18: 100 | M18: 2100
A19: 9 | B19: 100 | L19: 100 | M19: 2000
A20: 10 | B20: 100 | L20: 100 | M20: 1900
A21: 11 | B21: 100 | L21: 100 | M21: 1800
A22: 12 | B22: 100 | L22: 100 | M22: 1700
A23: 13 | B23: 100 | L23: 100 | M23: 1600
A24: 14 | B24: 100 | L24: 100 | M24: 1500
A25: 15 | B25: 100 | L25: 100 | M25: 1400
A26: 16 | B26: 100 | L26: 100 | M26: 1300
A27: 17 | B27: 100 | L27: 100 | M27: 1200
A28: 18 | B28: 100 | L28: 100 | M28: 1100
A29: 19 | B29: 100 | L29: 100 | M29: 1000
A30: 20 | B30: 100 | L30: 100 | M30: 900
A31: 21 | B31: 100 | L31: 100 | M31: 800
A32: 22 | B32: 100 | L32: 100 | M32: 700
A33: 23 | B33: 100 | L33: 100 | M33: 600
A34: 24 | B34: 100 | L34: 100 | M34: 500
A35: 25 | B35: 100 | L35: 100 | M35: 400
A36: 26 | B36: 100 | L36: 100 | M36: 300
A37: 27 | B37: 100 | L37: 100 | M37: 200
A38: 28 | B38: 100 | L38: 100 | M38: 100
A39: 29 | B39: 100 | L39: 100 | M39: 0
A40: 30 | B40: 100 | L40: 100 | M40: -100
M41: -100
A42: Đã chi | B42: =IF(SUM(B11:B41)=0,"",SUM(B11:B41)) -> 3000 | C42: =IF(SUM(C11:C41)=0,"",SUM(C11:C41)) -> 400 | D42: =IF(SUM(D11:D41)=0,"",SUM(D11:D41)) ->  | L42: =IF(SUM(L11:L41)=0,0,SUM(L11:L41)) -> 3400
A43: Ngân sách | B43: ='Ngan sach'!N22 -> 3000 | C43: ='Ngan sach'!N23 -> 300 | D43: ='Ngan sach'!N24 -> 0 | E43: ='Ngan sach'!N25 -> 0 | F43: ='Ngan sach'!N26 -> 0 | G43: ='Ngan sach'!N27 -> 0 | H43: ='Ngan sach'!N28 -> 0 | I43: ='Ngan sach'!N29 -> 0 | L43: =SUM(B43:K43) -> 3300
A44: Còn lại | B44: =B43-SUM(B11:B41) -> 0 | C44: =C43-SUM(C11:C41) -> -100 | D44: 0 | E44: 0 | F44: 0 | G44: 0 | H44: 0 | I44: 0 | J44: 0 | K44: 0 | L44: -100
A46: Cố định | D46: Trả nợ | G46: Bất thường | J46: Tiết kiệm & đầu tư | M46: Thu nhập thực tế
A47: =IF('Ngan sach'!$C$14=0," ",'Ngan sach'!$C$14) -> Thuê nhà | B47: 2500 | D47: =IF('Ngan sach'!$C$41=0," ",'Ngan sach'!$C$41) -> Vay Mua nhà | E47: 5320 | G47: =IF('Ngan sach'!$C$33=0," ",'Ngan sach'!$C$33) -> Đi lại + về quê | H47: 300 | J47: =IF('Ngan sach'!$C$49=0," ",'Ngan sach'!$C$49) -> TK Ngân hàng | K47: 2000 | M47: =IF('Ngan sach'!$C$6=0," ",'Ngan sach'!$C$6) -> Lương & Thưởng | N47: 16725
A48: =IF('Ngan sach'!$C$15=0," ",'Ngan sach'!$C$15) -> Điện thoại | B48: 200 | D48: =IF('Ngan sach'!$C$42=0," ",'Ngan sach'!$C$42) -> Mua xe | G48: =IF('Ngan sach'!$C$34=0," ",'Ngan sach'!$C$34) -> Khám bệnh | J48: =IF('Ngan sach'!$C$50=0," ",'Ngan sach'!$C$50) -> Bảo hiểm | M48: =IF('Ngan sach'!$C$7=0," ",'Ngan sach'!$C$7) -> Ngoài giờ | N48: 1000
A49: =IF('Ngan sach'!$C$16=0," ",'Ngan sach'!$C$16) -> Mạng internet | B49: 200 | D49: =IF('Ngan sach'!$C$43=0," ",'Ngan sach'!$C$43) -> Vay nợ cá nhân | E49: 2000 | G49: =IF('Ngan sach'!$C$35=0," ",'Ngan sach'!$C$35) -> Du lịch | J49: =IF('Ngan sach'!$C$51=0," ",'Ngan sach'!$C$51) -> Đầu tư | M49: =IF('Ngan sach'!$C$8=0," ",'Ngan sach'!$C$8) -> Lãi
A50: =IF('Ngan sach'!$C$17=0," ",'Ngan sach'!$C$17) -> Tiền học cho con | B50: 1655 | D50: =IF('Ngan sach'!$C$44=0," ",'Ngan sach'!$C$44) -> Thẻ tín dụng | G50: =IF('Ngan sach'!$C$36=0," ",'Ngan sach'!$C$36) -> Khác | M50: =IF('Ngan sach'!$C$9=0," ",'Ngan sach'!$C$8) -> 
A51: =IF('Ngan sach'!$C$18=0," ",'Ngan sach'!$C$18) ->  | D51: =IF('Ngan sach'!$C$45=0," ",'Ngan sach'!$C$45) ->  | G51: =IF('Ngan sach'!$C$37=0," ",'Ngan sach'!$C$37) ->  | M51: =IF('Ngan sach'!$C$9=0," ",'Ngan sach'!$C$8) -> 
A52: Tổng thực tế | B52: =SUM(B47:B51) -> 4555 | D52: Tổng thực tế | E52: =SUM(E47:E51) -> 7320 | G52: Tổng thực tế | H52: =SUM(H47:H51) -> 300 | J52: Tổng thực tế | K52: =SUM(K47:K51) -> 2000 | M52: Tổng thực tế | N52: =SUM(N47:N50) -> 17725
A53: Ngân sách | B53: =+'Ngan sach'!N19 -> 4975 | D53: Ngân sách | E53: =+'Ngan sach'!N46 -> 5000 | G53: Ngân sách | H53: =+'Ngan sach'!N38 -> 1500 | J53: Ngân sách | K53: =+'Ngan sach'!N53 -> 2725 | M53: Ngân sách | N53: =+'Ngan sach'!N11 -> 17500
A54: Chênh lệch | B54: =B53-B52 -> 420 | D54: Chênh lệch | E54: =E53-E52 -> -2320 | G54: Chênh lệch | H54: =H53-H52 -> 1200 | J54: Chênh lệch | K54: =K53-K52 -> 725 | M54: Chênh lệch | N54: =N53-N52 -> -225

Sheet T12
Q1: Thu nhập | R1: =+N52 -> 31000
Q2: Chi tiêu | R2: =+B52+E52+H52+K52+L42 -> 31355
Q4: Chênh lệch | R4: =+R1-R2 -> -355
B5: Thu nhập | C5: Chi T.xuyên | D5: Chi cố định | E5: Chi B.Thường | F5: Trả nợ | G5: T.kiệm & ĐT | H5: Còn lại | J5: =+IF(L44+H54>=0,"","CẢNH BÁO: CHI THƯỜNG XUYÊN + CHI BẤT THƯỜNG VƯỢT NGÂN SÁCH") -> 
A6: Ngân sách | B6: =+N53 -> 27500 | C6: =+L43 -> 3300 | D6: =+B53 -> 4975 | E6: =+H53 -> 1500 | F6: =+E53 -> 5000 | G6: =+K53 -> 2725 | H6: =+B6-SUM(C6:G6) -> 10000
A7: Thực tế | B7: =+N52 -> 31000 | C7: =+L42 -> 3500 | D7: =+B52 -> 4555 | E7: =+H52 -> 1000 | F7: =+E52 -> 7300 | G7: =+K52 -> 15000 | H7: =+B7-SUM(C7:G7) -> -355
A8: Chênh lêch | B8: =+B6-B7 -> -3500 | C8: =+C6-C7 -> -200 | D8: 420 | E8: 500 | F8: -2300 | G8: -12275 | P8: ĐVT: Nghìn đồng
A10: Tháng 12 | B10: =IF('Ngan sach'!C22=0, "", 'Ngan sach'!C22) -> Thức ăn | C10: =IF('Ngan sach'!C23=0, "", 'Ngan sach'!C23) -> Điện | D10: =IF('Ngan sach'!C24=0, "", 'Ngan sach'!C24) ->  | E10: =IF('Ngan sach'!C25=0, "", 'Ngan sach'!C25) ->  | F10: =IF('Ngan sach'!C26=0, "", 'Ngan sach'!C26) ->  | G10: =IF('Ngan sach'!C27=0, "", 'Ngan sach'!C27) ->  | H10: =IF('Ngan sach'!C28=0, "", 'Ngan sach'!C28) ->  | I10: =IF('Ngan sach'!C29=0, "", 'Ngan sach'!C29) ->  | L10: Tổng chi | M10: Còn lại | N10: Ghi chú
A11: 1 | B11: 100 | L11: =IF(SUM(B11:K11)=0,"",SUM(B11:K11)) -> 100 | M11: =L43-SUM(B11:K11) -> 3200
A12: 2 | B12: 100 | L12: =IF(SUM(B12:K12)=0," ",SUM(B12:K12)) -> 100 | M12: =M11-SUM(B12:K12) -> 3100
A13: 3 | B13: 100 | L13: 100 | M13: =M12-SUM(B13:K13) -> 3000
A14: 4 | B14: 100 | C14: 400 | L14: 500 | M14: 2500
A15: 5 | B15: 100 | L15: 100 | M15: 2400
A16: 6 | B16: 100 | L16: 100 | M16: 2300
A17: 7 | B17: 100 | L17: 100 | M17: 2200
A18: 8 | B18: 100 | L18: 100 | M18: 2100
A19: 9 | B19: 100 | L19: 100 | M19: 2000
A20: 10 | B20: 100 | L20: 100 | M20: 1900
A21: 11 | B21: 100 | L21: 100 | M21: 1800
A22: 12 | B22: 100 | L22: 100 | M22: 1700
A23: 13 | B23: 100 | L23: 100 | M23: 1600
A24: 14 | B24: 100 | L24: 100 | M24: 1500
A25: 15 | B25: 100 | L25: 100 | M25: 1400
A26: 16 | B26: 100 | L26: 100 | M26: 1300
A27: 17 | B27: 100 | L27: 100 | M27: 1200
A28: 18 | B28: 100 | L28: 100 | M28: 1100
A29: 19 | B29: 100 | L29: 100 | M29: 1000
A30: 20 | B30: 100 | L30: 100 | M30: 900
A31: 21 | B31: 100 | L31: 100 | M31: 800
A32: 22 | B32: 100 | L32: 100 | M32: 700
A33: 23 | B33: 100 | L33: 100 | M33: 600
A34: 24 | B34: 100 | L34: 100 | M34: 500
A35: 25 | B35: 100 | L35: 100 | M35: 400
A36: 26 | B36: 100 | L36: 100 | M36: 300
A37: 27 | B37: 100 | L37: 100 | M37: 200
A38: 28 | B38: 100 | L38: 100 | M38: 100
A39: 29 | B39: 100 | L39: 100 | M39: 0
A40: 30 | B40: 100 | L40: 100 | M40: -100
A41: 31 | B41: 100 | L41: 100 | M41: -200
A42: Đã chi | B42: =IF(SUM(B11:B41)=0,"",SUM(B11:B41)) -> 3100 | C42: =IF(SUM(C11:C41)=0,"",SUM(C11:C41)) -> 400 | D42: =IF(SUM(D11:D41)=0,"",SUM(D11:D41)) ->  | L42: =IF(SUM(L11:L41)=0,0,SUM(L11:L41)) -> 3500
A43: Ngân sách | B43: ='Ngan sach'!O22 -> 3000 | C43: ='Ngan sach'!O23 -> 300 | D43: ='Ngan sach'!O24 -> 0 | E43: ='Ngan sach'!O25 -> 0 | F43: ='Ngan sach'!O26 -> 0 | G43: ='Ngan sach'!O27 -> 0 | H43: ='Ngan sach'!O28 -> 0 | I43: ='Ngan sach'!O29 -> 0 | L43: =SUM(B43:K43) -> 3300
A44: Còn lại | B44: =B43-SUM(B11:B41) -> -100 | C44: =C43-SUM(C11:C41) -> -100 | D44: 0 | E44: 0 | F44: 0 | G44: 0 | H44: 0 | I44: 0 | J44: 0 | K44: 0 | L44: -200
A46: Cố định | D46: Trả nợ | G46: Bất thường | J46: Tiết kiệm & đầu tư | M46: Thu nhập thực tế
A47: =IF('Ngan sach'!$C$14=0," ",'Ngan sach'!$C$14) -> Thuê nhà | B47: 2500 | D47: =IF('Ngan sach'!$C$41=0," ",'Ngan sach'!$C$41) -> Vay Mua nhà | E47: 5300 | G47: =IF('Ngan sach'!$C$33=0," ",'Ngan sach'!$C$33) -> Đi lại + về quê | H47: 1000 | J47: =IF('Ngan sach'!$C$49=0," ",'Ngan sach'!$C$49) -> TK Ngân hàng | K47: 15000 | M47: =IF('Ngan sach'!$C$6=0," ",'Ngan sach'!$C$6) -> Lương & Thưởng | N47: 31000
A48: =IF('Ngan sach'!$C$15=0," ",'Ngan sach'!$C$15) -> Điện thoại | B48: 200 | D48: =IF('Ngan sach'!$C$42=0," ",'Ngan sach'!$C$42) -> Mua xe | G48: =IF('Ngan sach'!$C$34=0," ",'Ngan sach'!$C$34) -> Khám bệnh | J48: =IF('Ngan sach'!$C$50=0," ",'Ngan sach'!$C$50) -> Bảo hiểm | M48: =IF('Ngan sach'!$C$7=0," ",'Ngan sach'!$C$7) -> Ngoài giờ
A49: =IF('Ngan sach'!$C$16=0," ",'Ngan sach'!$C$16) -> Mạng internet | B49: 200 | D49: =IF('Ngan sach'!$C$43=0," ",'Ngan sach'!$C$43) -> Vay nợ cá nhân | E49: 2000 | G49: =IF('Ngan sach'!$C$35=0," ",'Ngan sach'!$C$35) -> Du lịch | J49: =IF('Ngan sach'!$C$51=0," ",'Ngan sach'!$C$51) -> Đầu tư | M49: =IF('Ngan sach'!$C$8=0," ",'Ngan sach'!$C$8) -> Lãi
A50: =IF('Ngan sach'!$C$17=0," ",'Ngan sach'!$C$17) -> Tiền học cho con | B50: 1655 | D50: =IF('Ngan sach'!$C$44=0," ",'Ngan sach'!$C$44) -> Thẻ tín dụng | G50: =IF('Ngan sach'!$C$36=0," ",'Ngan sach'!$C$36) -> Khác | M50: =IF('Ngan sach'!$C$9=0," ",'Ngan sach'!$C$8) -> 
A51: =IF('Ngan sach'!$C$18=0," ",'Ngan sach'!$C$18) ->  | D51: =IF('Ngan sach'!$C$45=0," ",'Ngan sach'!$C$45) ->  | G51: =IF('Ngan sach'!$C$37=0," ",'Ngan sach'!$C$37) ->  | M51: =IF('Ngan sach'!$C$9=0," ",'Ngan sach'!$C$8) -> 
A52: Tổng thực tế | B52: =SUM(B47:B51) -> 4555 | D52: Tổng thực tế | E52: =SUM(E47:E51) -> 7300 | G52: Tổng thực tế | H52: =SUM(H47:H51) -> 1000 | J52: Tổng thực tế | K52: =SUM(K47:K51) -> 15000 | M52: Tổng thực tế | N52: =SUM(N47:N50) -> 31000
A53: Ngân sách | B53: =+'Ngan sach'!O19 -> 4975 | D53: Ngân sách | E53: =+'Ngan sach'!O46 -> 5000 | G53: Ngân sách | H53: =+'Ngan sach'!O38 -> 1500 | J53: Ngân sách | K53: =+'Ngan sach'!O53 -> 2725 | M53: Ngân sách | N53: =+'Ngan sach'!O11 -> 27500
A54: Chênh lệch | B54: =B53-B52 -> 420 | D54: Chênh lệch | E54: =E53-E52 -> -2300 | G54: Chênh lệch | H54: =H53-H52 -> 500 | J54: Chênh lệch | K54: =K53-K52 -> -12275 | M54: Chênh lệch | N54: =N53-N52 -> -3500

Sheet BKCT
B4: BÁO CÁO TỔNG QUAN TÌNH HÌNH TÀI CHÍNH
DZ5: T1 | EA5: T2 | EB5: T3 | EC5: T4 | ED5: T5 | EE5: T6 | EF5: T7 | EG5: T8 | EH5: T9 | EI5: T10 | EJ5: T11 | EK5: T12
DY6: Chi thường xuyên | DZ6: =+'T1'!$L$42 -> 3450 | EA6: =+'T2'!$L$42 -> 3000 | EB6: =+'T3'!$L$42 -> 3500 | EC6: =+'T4'!$L$42 -> 3000 | ED6: =+'T5'!$L$42 -> 3500 | EE6: =+'T6'!$L$42 -> 3400 | EF6: =+'T7'!$L$42 -> 3500 | EG6: =+'T8'!$L$42 -> 3500 | EH6: =+'T9'!$L$42 -> 3400 | EI6: =+'T10'!$L$42 -> 3500 | EJ6: =+'T11'!$L$42 -> 3400 | EK6: =+'T12'!$L$42 -> 3500 | EL6: =+SUM(DZ6:EK6) -> 40650
B7: Cơ cấu chi tiêu tháng | DY7: Chi cố định | DZ7: =+'T1'!$B$52 -> 4555 | EA7: =+'T2'!$B$52 -> 4555 | EB7: =+'T3'!$B$52 -> 4555 | EC7: =+'T4'!$B$52 -> 4555 | ED7: =+'T5'!$B$52 -> 4555 | EE7: =+'T6'!$B$52 -> 4555 | EF7: =+'T7'!$B$52 -> 4555 | EG7: =+'T8'!$B$52 -> 4555 | EH7: =+'T9'!$B$52 -> 4555 | EI7: =+'T10'!$B$52 -> 4555 | EJ7: =+'T11'!$B$52 -> 4555 | EK7: =+'T12'!$B$52 -> 4555 | EL7: =+SUM(DZ7:EK7) -> 54660
B8: Tháng | C8: 10 | DY8: Chi bất thường | DZ8: =+'T1'!$H$52 -> 1500 | EA8: =+'T2'!$H$52 -> 2000 | EB8: =+'T3'!$H$52 -> 0 | EC8: =+'T4'!$H$52 -> 0 | ED8: =+'T5'!$H$52 -> 0 | EE8: =+'T6'!$H$52 -> 0 | EF8: =+'T7'!$H$52 -> 1000 | EG8: =+'T8'!$H$52 -> 1500 | EH8: =+'T9'!$H$52 -> 0 | EI8: =+'T10'!$H$52 -> 0 | EJ8: =+'T11'!$H$52 -> 300 | EK8: =+'T12'!$H$52 -> 1000 | EL8: =+SUM(DZ8:EK8) -> 7300
B9: Chi thường xuyên | C9: =+INDEX(DZ15:EK15,$C$8) -> 0.2092675635 | DY9: Tiết kiệm | DZ9: =+'T1'!$K$52 -> 9000 | EA9: =+'T2'!$K$52 -> 12000 | EB9: =+'T3'!$K$52 -> 11500 | EC9: =+'T4'!$K$52 -> 24000 | ED9: =+'T5'!$K$52 -> 8500 | EE9: =+'T6'!$K$52 -> 1000 | EF9: =+'T7'!$K$52 -> 5500 | EG9: =+'T8'!$K$52 -> 4000 | EH9: =+'T9'!$K$52 -> 3500 | EI9: =+'T10'!$K$52 -> 1300 | EJ9: =+'T11'!$K$52 -> 2000 | EK9: =+'T12'!$K$52 -> 15000 | EL9: =+SUM(DZ9:EK9) -> 97300
B10: Chi cố định | C10: =+INDEX(DZ16:EK16,$C$8) -> 0.2723467862 | DY10: Trả nợ | DZ10: =+'T1'!$E$52 -> 0 | EA10: =+'T2'!$E$52 -> 0 | EB10: =+'T3'!$E$52 -> 0 | EC10: =+'T4'!$E$52 -> 0 | ED10: =+'T5'!$E$52 -> 0 | EE10: =+'T6'!$E$52 -> 7500 | EF10: =+'T7'!$E$52 -> 7450 | EG10: =+'T8'!$E$52 -> 7400 | EH10: =+'T9'!$E$52 -> 7350 | EI10: =+'T10'!$E$52 -> 7300 | EJ10: =+'T11'!$E$52 -> 7320 | EK10: =+'T12'!$E$52 -> 7300 | EL10: =+SUM(DZ10:EK10) -> 51620
B11: Chi bất thường | C11: =+INDEX(DZ17:EK17,$C$8) -> 0 | DY11: Thu nhập | DZ11: =+'T1'!$N$52 -> 18725 | EA11: =+'T2'!$N$52 -> 21725 | EB11: =+'T3'!$N$52 -> 19725 | EC11: =+'T4'!$N$52 -> 31500 | ED11: =+'T5'!$N$52 -> 16725 | EE11: =+'T6'!$N$52 -> 16725 | EF11: =+'T7'!$N$52 -> 22000 | EG11: =+'T8'!$N$52 -> 21000 | EH11: =+'T9'!$N$52 -> 18725 | EI11: =+'T10'!$N$52 -> 16725 | EJ11: =+'T11'!$N$52 -> 17725 | EK11: =+'T12'!$N$52 -> 31000 | EL11: =+SUM(DZ11:EK11) -> 252300
B12: Tiết kiệm | C12: =+INDEX(DZ18:EK18,$C$8) -> 0.07772795217 | DY12: Tổng chi phí sinh hoạt | DZ12: =+DZ6+DZ7+DZ8 -> 9505 | EA12: =+EA6+EA7+EA8 -> 9555 | EB12: 8055 | EC12: 7555 | ED12: 8055 | EE12: 7955 | EF12: 9055 | EG12: 9555 | EH12: 7955 | EI12: 8055 | EJ12: 8255 | EK12: 9055 | EL12: 102610
B13: Trả nợ | C13: =+INDEX(DZ19:EK19,$C$8) -> 0.4364723468
B14: Còn lại | C14: =1-SUM(C9:C13) -> 0.004185351271 | DY14: Tỷ trọng | DZ14: T1 | EA14: T2 | EB14: T3 | EC14: T4 | ED14: T5 | EE14: T6 | EF14: T7 | EG14: T8 | EH14: T9 | EI14: T10 | EJ14: T11 | EK14: T12 | EL14: Trung bình
DY15: Chi thường xuyên | DZ15: =+DZ6/DZ$11 -> 0.1842456609 | EA15: =+EA6/EA$11 -> 0.1380897583 | EB15: 0.1774397972 | EC15: 0.09523809524 | ED15: 0.2092675635 | EE15: 0.2032884903 | EF15: 0.1590909091 | EG15: 0.1666666667 | EH15: 0.1815754339 | EI15: 0.2092675635 | EJ15: 0.191819464 | EK15: 0.1129032258 | EL15: =+EL6/$EL$22 -> 0.161117717
B16: Cơ cấu chi tiêu cả năm | DY16: Chi cố định | DZ16: =+DZ7/DZ$11 -> 0.2432576769 | EA16: 0.2096662831 | EB16: 0.2309252218 | EC16: 0.1446031746 | ED16: 0.2723467862 | EE16: 0.2723467862 | EF16: 0.2070454545 | EG16: 0.2169047619 | EH16: 0.2432576769 | EI16: 0.2723467862 | EJ16: 0.2569816643 | EK16: 0.1469354839 | EL16: =+EL7/$EL$22 -> 0.216646849
B17: Cả năm | C17: 2017 | DY17: Chi bất thường | DZ17: 0.08010680908 | EA17: 0.0920598389 | EB17: 0 | EC17: 0 | ED17: 0 | EE17: 0 | EF17: 0.04545454545 | EG17: 0.07142857143 | EH17: 0 | EI17: 0 | EJ17: 0.01692524683 | EK17: 0.03225806452 | EL17: =+EL8/$EL$22 -> 0.02893380896
B18: Thu nhập | C18: =+EL11 -> 252300 | DY18: Tiết kiệm | DZ18: 0.4806408545 | EA18: 0.5523590334 | EB18: 0.5830164766 | EC18: 0.7619047619 | ED18: 0.5082212257 | EE18: 0.05979073244 | EF18: 0.25 | EG18: 0.1904761905 | EH18: 0.1869158879 | EI18: 0.07772795217 | EJ18: 0.1128349788 | EK18: 0.4838709677 | EL18: =+EL9/$EL$22 -> 0.3856520016
B19: Chi tiêu | C19: =+EL12 -> 102610 | DY19: Trả nợ | DZ19: 0 | EA19: 0 | EB19: 0 | EC19: 0 | ED19: 0 | EE19: 0.4484304933 | EF19: 0.3386363636 | EG19: 0.3523809524 | EH19: 0.3925233645 | EI19: 0.4364723468 | EJ19: 0.4129760226 | EK19: 0.235483871 | EL19: =+EL10/$EL$22 -> 0.2045977011
B20: Tiết kiệm - Đầu tư | C20: =+EL9 -> 97300
B21: Trả nợ | C21: =+EL10 -> 51620 | DY21: Thu nhập | DZ21: T1 | EA21: T2 | EB21: T3 | EC21: T4 | ED21: T5 | EE21: T6 | EF21: T7 | EG21: T8 | EH21: T9 | EI21: T10 | EJ21: T11 | EK21: T12 | EL21: Total
B22: Còn lại | C22: =+C18-SUM(C19:C21) -> 770 | DY22: Thực tế | DZ22: =+'T1'!$N$52 -> 18725 | EA22: =+'T2'!$N$52 -> 21725 | EB22: =+'T3'!$N$52 -> 19725 | EC22: =+'T4'!$N$52 -> 31500 | ED22: =+'T5'!$N$52 -> 16725 | EE22: =+'T6'!$N$52 -> 16725 | EF22: =+'T7'!$N$52 -> 22000 | EG22: =+'T8'!$N$52 -> 21000 | EH22: =+'T9'!$N$52 -> 18725 | EI22: =+'T10'!$N$52 -> 16725 | EJ22: =+'T11'!$N$52 -> 17725 | EK22: =+'T12'!$N$52 -> 31000 | EL22: =+SUM(DZ22:EK22) -> 252300
DY23: Ngân sách | DZ23: =+'Ngan sach'!D11 -> 17500 | EA23: =+'Ngan sach'!E11 -> 17500 | EB23: =+'Ngan sach'!F11 -> 17500 | EC23: =+'Ngan sach'!G11 -> 32500 | ED23: =+'Ngan sach'!H11 -> 17500 | EE23: =+'Ngan sach'!I11 -> 17500 | EF23: =+'Ngan sach'!J11 -> 21500 | EG23: =+'Ngan sach'!K11 -> 17500 | EH23: =+'Ngan sach'!L11 -> 17500 | EI23: =+'Ngan sach'!M11 -> 17500 | EJ23: =+'Ngan sach'!N11 -> 17500 | EK23: =+'Ngan sach'!O11 -> 27500 | EL23: =+SUM(DZ23:EK23) -> 239000
DY24: Chi tiêu | DZ24: T1 | EA24: T2 | EB24: T3 | EC24: T4 | ED24: T5 | EE24: T6 | EF24: T7 | EG24: T8 | EH24: T9 | EI24: T10 | EJ24: T11 | EK24: T12 | EL24: Total
DY25: Thực tế | DZ25: =+SUM(DZ6:DZ8) -> 9505 | EA25: =+SUM(EA6:EA8) -> 9555 | EB25: 8055 | EC25: 7555 | ED25: 8055 | EE25: 7955 | EF25: 9055 | EG25: 9555 | EH25: 7955 | EI25: 8055 | EJ25: 8255 | EK25: 9055 | EL25: =+SUM(DZ25:EK25) -> 102610
DY26: Ngân sách | DZ26: =+'Ngan sach'!D19+'Ngan sach'!D30+'Ngan sach'!D38 -> 9875 | EA26: =+'Ngan sach'!E19+'Ngan sach'!E30+'Ngan sach'!E38 -> 9925 | EB26: =+'Ngan sach'!F19+'Ngan sach'!F30+'Ngan sach'!F38 -> 9875 | EC26: =+'Ngan sach'!G19+'Ngan sach'!G30+'Ngan sach'!G38 -> 9875 | ED26: =+'Ngan sach'!H19+'Ngan sach'!H30+'Ngan sach'!H38 -> 10075 | EE26: =+'Ngan sach'!I19+'Ngan sach'!I30+'Ngan sach'!I38 -> 9875 | EF26: =+'Ngan sach'!J19+'Ngan sach'!J30+'Ngan sach'!J38 -> 9875 | EG26: =+'Ngan sach'!K19+'Ngan sach'!K30+'Ngan sach'!K38 -> 9875 | EH26: =+'Ngan sach'!L19+'Ngan sach'!L30+'Ngan sach'!L38 -> 9875 | EI26: =+'Ngan sach'!M19+'Ngan sach'!M30+'Ngan sach'!M38 -> 9775 | EJ26: =+'Ngan sach'!N19+'Ngan sach'!N30+'Ngan sach'!N38 -> 9775 | EK26: =+'Ngan sach'!O19+'Ngan sach'!O30+'Ngan sach'!O38 -> 9775 | EL26: =+SUM(DZ26:EK26) -> 118450

Sheet No
A4: Bảng kê 01 | E4: Đơn vị tính: | F4: 1.000 VNĐ | H4: Bảng kê 02 | L4: Đơn vị tính: | M4: 1.000 VNĐ
A5: Ngày tháng | B5: Nội dung | C5: Món vay | D5: Phát sinh mới | E5: Trả nợ | F5: Ghi chú | H5: STT | I5: Món vay | J5: Nợ từ năm trước chuyển sang | K5: Phát sinh thêm | L5: Đã trả | M5: Còn lại
A6: 2017-01-01 | B6: Nợ mua nhà | C6: Vay ngân hàng | D6: 300000 | H6: 1 | I6: Vay ngân hàng | K6: =+SUMIFS($D$6:$D$58,$C$6:$C$58,I6) -> 300000 | L6: =++SUMIFS($E$6:$E$58,$C$6:$C$58,I6) -> 5000 | M6: =+J6+K6-L6 -> 295000
A7: 2017-07-20 | B7: Trả nợ gốc lần 1 | C7: Vay ngân hàng | E7: 5000 | H7: 2 | I7: Vay mua xe | J7: 5000 | K7: =+SUMIFS($D$6:$D$58,$C$6:$C$58,I7) -> 0 | L7: =++SUMIFS($E$6:$E$58,$C$6:$C$58,I7) -> 0 | M7: =+J7+K7-L7 -> 5000
A8: 2017-07-30 | B8: Nợ thẻ tín dụng tháng 7 | C8: Thẻ tín dụng | D8: 50000 | H8: 3 | I8: Vay A Hải | K8: 0 | L8: 0 | M8: 0
H9: 4 | I9: Thẻ tín dụng | K9: 50000 | L9: 0 | M9: 50000
H10: 5 | K10: 0 | L10: 0 | M10: 0
H11: 6 | K11: 0 | L11: 0 | M11: 0
H12: 7 | K12: 0 | L12: 0 | M12: 0
H13: 8 | K13: 0 | L13: 0 | M13: 0
H14: 9 | K14: 0 | L14: 0 | M14: 0
H15: 10 | K15: 0 | L15: 0 | M15: 0
H16: 11 | K16: 0 | L16: 0 | M16: 0
A59: . | B59: . | C59: . | D59: . | E59: . | F59: . | G59: . | H59: . | I59: . | J59: .
